{"text_format":"1","workbook":"xlsx","n_sheets":2,"sheets":["آسفالت","report"],"not_rendered":{"charts":0,"images":0,"macros":1,"external_links":0,"defined_names":1,"comments":0,"pivot_tables":0},"unopened":[],"bounds":{"document_bytes":16777216,"sheet_cells":100000,"rows_first":2000,"rows_last":500,"rows_between":2000,"halvings":0,"cell_chars":16384,"cell_head_chars":4096},"cells_cut":0,"cells_raw":0,"read":"whole","date_system":"1900"}

{"sheet":"آسفالت","index":0,"n_rows":1610,"n_cols":14,"rows_kept":1610,"cut":false,"hidden":false,"merged":[[613,1,613,2],[613,4,613,7],[613,8,613,9],[529,4,529,7],[529,8,529,9],[585,1,585,2],[585,4,585,7],[585,8,585,9],[557,1,557,2],[557,4,557,7],[557,8,557,9],[529,1,529,2],[417,1,417,2],[417,4,417,7],[417,8,417,9],[445,1,445,2],[445,4,445,7],[445,8,445,9],[473,1,473,2],[473,4,473,7],[473,8,473,9],[501,1,501,2],[501,4,501,7],[501,8,501,9],[333,4,333,7],[333,8,333,9],[361,1,361,2],[361,4,361,7],[361,8,361,9],[389,1,389,2],[389,4,389,7],[389,8,389,9],[221,4,221,7],[221,8,221,9],[249,1,249,2],[249,4,249,7],[249,8,249,9],[277,1,277,2],[277,4,277,7],[277,8,277,9],[305,1,305,2],[305,4,305,7],[305,8,305,9],[221,1,221,2],[333,1,333,2],[137,1,137,2],[137,4,137,7],[137,8,137,9],[165,1,165,2],[165,4,165,7],[165,8,165,9],[193,1,193,2],[193,4,193,7],[193,8,193,9],[87,18,87,22],[82,1,82,2],[82,4,82,7],[82,8,82,9],[88,4,88,8],[112,18,112,19],[113,18,113,19],[114,18,114,19],[110,1,110,2],[110,4,110,7],[110,8,110,9],[113,4,113,5],[114,4,114,5],[26,1,26,2],[26,4,26,7],[26,8,26,9],[58,19,58,23],[60,19,60,23],[54,1,54,2],[54,4,54,7],[54,8,54,9],[59,4,59,8],[5,4,5,8],[18,4,18,8],[69,4,69,8],[44,4,44,8],[57,4,57,8],[41,4,41,8],[32,4,32,8],[79,4,79,8],[92,4,92,8],[96,4,96,8],[97,4,97,5],[98,4,98,5],[99,4,99,5],[112,4,112,5],[104,4,104,5],[105,4,105,5],[106,4,106,5],[107,4,107,5],[108,4,108,5],[100,4,100,5],[101,4,101,5],[102,4,102,5],[103,4,103,5],[109,4,109,5]]}
["ردیف","تاریخ","مسیر","طول مسیر","مختصات  ابتدای مسیر","مختصات  انتهای مسیر","عرض مازاد","طول مسیرعرض مازاد(m)","مختصات عرض مازاد","شماره عکس","معادل سازی متر طول15سانت",{"$f":"SUM(L2:L999999)","v":998.15000000000009},{"$f":"SUM(M2:M999999)","v":1609.5},{"$f":"M1+L1","v":2607.65}]
[1,"1404/01/21",1,80,"32.381071,48.417979","32.380455,48.417558",50,1.4,"32.381054,48.417974",3061,{"$f":"H2*G2/15","v":4.666666666666667},{"$f":"K2","v":4.666666666666667},{"$f":"D2","v":80}]
[2,"1404/01/21",1,0,"32.381071,48.417979","32.380455,48.417558",20,6,"32.381012,48.417984",3062,{"$f":"H3*G3/15","v":8},{"$f":"K3","v":8},{"$f":"D3","v":0}]
[3,"1404/01/21",1,0,"32.381071,48.417979","32.380455,48.417558",10,17,"32.380898,48.417925",3063,11.333333333333334,11.333333333333334,0]
[4,"1404/01/21",1,0,"32.381071,48.417979","32.380455,48.417558",15,22,"32.380591,48.417674",3064,22,22,0]
[5,"1404/01/21",1,0,"خیابان ابوریحان تانبش فجرروبروی سایپا",null,null,null,null,0,{"$f":"H6*G6/10","v":0},0,0]
[6,"1404/01/21",2,210,"32.373618,48.417226","32.373172,48.416377",60,3.2,"32.3733612,48.417221",3067,{"$f":"H7*G7/15","v":12.8},12.8,210]
[7,"1404/01/21",2,0,"32.373618,48.417226","32.373172,48.416377",65,1.7,"32.373419,48.417082",3068,{"$f":"H8*G8/15","v":7.3666666666666663},7.3666666666666663,0]
[8,"1404/01/21",2,0,"32.373618,48.417226","32.373172,48.416377",60,0.8,"32.373180,48.416908",3069,3.2,3.2,0]
[9,"1404/01/21",2,0,"32.373618,48.417226","32.373172,48.416377",15,7.3,"32.373174,48.416891",3070,7.3,7.3,0]
[10,"1404/01/21",2,0,"32.373618,48.417226","32.373172,48.416377",40,0.9,"32.372929,48.416740",3071,2.4,2.4,0]
[11,"1404/01/21",2,0,"32.373618,48.417226","32.373172,48.416377",55,1.8,"32.372858,48.416682",3072,6.6,6.6,0]
[12,"1404/01/21",2,0,"32.373618,48.417226","32.373172,48.416377",30,1.5,"32.372807,48.416640",3073,3,3,0]
[13,"1404/01/21",2,0,"32.373618,48.417226","32.373172,48.416377",45,2,"32.372875,48.416168",3074,6,6,0]
[14,"1404/01/21",2,0,"32.373618,48.417226","32.373172,48.416377",55,5,"32.372895,48.416176",3075,18.333333333333332,18.333333333333332,0]
[15,"1404/01/21",2,0,"32.373618,48.417226","32.373172,48.416377",15,7,"32.373017,48.416277",3076,7,7,0]
[16,"1404/01/21",2,0,"32.373618,48.417226","32.373172,48.416377",40,3.5,"32.373021,48.416303",3077,9.3333333333333339,9.3333333333333339,0]
[17,"1404/01/21",2,0,"32.373618,48.417226","32.373172,48.416377",65,2,"32.373151,48.416377",3078,8.6666666666666661,8.6666666666666661,0]
[18,"1404/01/21",2,0,"خیابان فداییان اسلام از نبش دارالمومنین تاکوچه شهید اردی زاده آخر مسیر",null,null,null,null,0,{"$f":"H19*G19/10","v":0},0,0]
[19,"1404/01/21",3,101,"32.372735,48.416649","32.372355,48.417585",70,1.5,"32.372735,48.416649",3081,{"$f":"H20*G20/15","v":7},7,101]
[20,"1404/01/21",3,null,"32.372735,48.416649","32.372355,48.417585",95,1.5,"32.372736,48.416679",3082,{"$f":"H21*G21/15","v":9.5},9.5,0]
[21,"1404/01/21",3,null,"32.372735,48.416649","32.372355,48.417585",85,0.9,"32.372735,48.416753",3083,5.0999999999999996,5.0999999999999996,0]
[22,"1404/01/21",3,null,"32.372735,48.416649","32.372355,48.417585",25,6.5,"32.372715,48.416838",3084,10.833333333333334,10.833333333333334,0]
[23,"1404/01/21",3,null,"32.372735,48.416649","32.372355,48.417585",20,4,"32.372681,48.416875",3085,5.333333333333333,5.333333333333333,0]
[24,"1404/01/21",3,null,"32.372735,48.416649","32.372355,48.417585",45,2,"32.372525,48.417172",3086,6,6,0]
[25,"1404/01/21",3,null,"32.372735,48.416649","32.372355,48.417585",85,1.6,"32.372519,48.417186",3087,9.0666666666666664,9.0666666666666664,0]
[null,"جمع طولی",null,{"$f":"SUM(D2:D26)","v":391},"صفحه 1",null,null,null,"جمع مازاد",null,{"$f":"SUM(K2:K26)","v":190.83333333333331},0,0]
["ردیف","تاریخ","مسیر","طول مسیر","مختصات  ابتدای مسیر","مختصات  انتهای مسیر","عرض مازاد","طول مسیرعرض مازاد(m)","مختصات عرض مازاد","شماره عکس","معادل سازی متر طول",0,0]
[26,"1404/01/21",3,null,"32.372735,48.416649","32.372355,48.417585",60,2,"32.372489,48.417250",3088,{"$f":"H29*G29/15","v":8},{"$f":"K29","v":8},0]
[27,"1404/01/21",3,null,"32.372735,48.416649","32.372355,48.417585",45,2.4,"32.372457,48.417282",3089,{"$f":"H30*G30/15","v":7.2},7.2,0]
[28,"1404/01/21",3,null,"32.372735,48.416649","32.372355,48.417585",10,1,"32.372400,48.417417",3090,0.66666666666666663,0.66666666666666663,0]
[29,"1404/01/21",3,0,"32.372735,48.416649","32.372355,48.417585",45,4,"32.372362,48.417590",3091,12,12,0]
[30,"1404/01/21",3,0,"خیابان اندرزگو از نبش فداییان اسلام تااخر مسیر",null,null,null,null,0,{"$f":"G33*H33/10","v":0},0,0]
[31,"1404/01/22",1,67,"32.379505,48.414810","32.379725,48.414274",35,6.6,"32.379512,48.414793",3104,{"$f":"G34*H34/15","v":15.4},15.4,67]
[32,"1404/01/22",1,0,"32.379505,48.414810","32.379725,48.414274",10,28.8,"32.379546,48.414802",3105,{"$f":"G35*H35/15","v":19.2},19.2,0]
[33,"1404/01/22",1,0,"32.379505,48.414810","32.379725,48.414274",80,2,"32.379559,48.41824",3106,10.666666666666666,10.666666666666666,0]
[34,"1404/01/22",1,0,"32.379505,48.414810","32.379725,48.414274",15,10,"32.379602,48.414738",3107,10,10,0]
[35,"1404/01/22",1,0,"32.379505,48.414810","32.379725,48.414274",110,0.8,"32.379626,48.414545",3108,5.8666666666666663,5.8666666666666663,0]
[36,"1404/01/22",1,0,"32.379505,48.414810","32.379725,48.414274",30,1.3,"32.379684,48.414434",3109,2.6,2.6,0]
[37,"1404/01/22",1,0,"32.379505,48.414810","32.379725,48.414274",25,3,"32.379736,48.414270",3110,5,5,0]
[38,"1404/01/22",1,0,"32.379505,48.414810","32.379725,48.414274",0,0,"32.379725,48.414274",3111,{"$f":"G41*H41/10","v":0},0,0]
[39,"1404/01/22",1,0,"خیابان معزی از نبش مطهری تا 45 متری",null,null,null,null,0,0,0,0]
[40,"1404/01/22",2,127,"32.379728,48.414276","32.380727,48.413958",45,2,"32.380259,48.414079",3113,{"$f":"G43*H43/15","v":6},6,127]
[41,"1404/01/22",2,0,"32.379728,48.414276","32.380727,48.413958",20,7,"32.380413,48.414017",3114,{"$f":"G44*H44/15","v":9.3333333333333339},9.3333333333333339,0]
[42,"1404/01/22",2,0,"خیابان45متری از نبش معزی تانبش خیابان فجر",null,null,null,null,0,0,0,0]
[43,"1404/01/22",3,197,"32.376095,48.422024","32.376882,48.420357",80,0.6,"32.376174,48.421713",3141,{"$f":"G46*H46/15","v":3.2},3.2,197]
[44,"1404/01/22",3,0,"32.376095,48.422024","32.376882,48.420357",80,0.9,"32.376293,48.421627",3142,{"$f":"G47*H47/15","v":4.8},4.8,0]
[45,"1404/01/22",3,0,"32.376095,48.422024","32.376882,48.420357",15,1.5,"32.376393,48.421388",3143,1.5,1.5,0]
[46,"1404/01/22",3,0,"32.376095,48.422024","32.376882,48.420357",20,7,"32.376437,48.421314",3144,9.3333333333333339,9.3333333333333339,0]
[47,"1404/01/22",3,0,"32.376095,48.422024","32.376882,48.420357",65,1,"32.376473,48.421247",3146,4.333333333333333,4.333333333333333,0]
[48,"1404/01/22",3,0,"32.376095,48.422024","32.376882,48.420357",50,0.6,"32.376496,48.421214",3147,2,2,0]
[49,"1404/01/22",3,0,"32.376095,48.422024","32.376882,48.420357",100,0.9,"32.376845,48.420528",3148,6,6,0]
[50,"1404/01/22",3,0,"32.376095,48.422024","32.376882,48.420357",85,0.9,"32.376867,48.420493",3149,5.0999999999999996,5.0999999999999996,0]
[51,"1404/01/22",3,0,"32.376095,48.422024","32.376882,48.420357",60,1.1000000000000001,"32.376872,48.420306",3150,4.4000000000000004,4.4000000000000004,0]
[null,"جمع طولی",null,{"$f":"SUM(D29:D54)","v":391},"صفحه 2",null,null,null,"جمع مازاد",null,{"$f":"SUM(K29:K54)","v":152.6},0,0]
["ردیف","تاریخ","مسیر","طول مسیر","مختصات  ابتدای مسیر","مختصات  انتهای مسیر","عرض مازاد","طول مسیرعرض مازاد(m)","مختصات عرض مازاد","شماره عکس","معادل سازی متر طول",0,0]
[52,"1404/01/22",3,0,"32.376095,48.422024","32.376882,48.420357",75,1.5,"32.376902,48.420373",3151,{"$f":"H57*G57/15","v":7.5},{"$f":"K57","v":7.5},0]
[53,"1404/01/22",3,0,"خیابان شریعتی ازنبش پیام آوران تانبش خیابان ابوالفضل",null,null,null,null,0,{"$f":"H58*G58/15","v":0},0,0]
[54,"1404/01/24",1,66,"32.366577,48.386504","32.366069,48.386110",55,3.3,"32.366565,48.386492",3181,12.1,12.1,66]
[55,"1404/01/24",1,0,"خیابان امام از روبروی ارتباطات مرکزی تاخیابان مقام علی",null,null,null,null,0,0,0,0]
[56,"1404/01/24",2,321,"32.366069,48.386110","32.368032,48.383622",65,1.4,"32.366069,48.386110",3184,6.0666666666666664,6.0666666666666664,321]
[57,"1404/01/24",2,0,"32.366069,48.386110","32.368032,48.383622",50,2,"32.366078,48.386094",3185,6.666666666666667,6.666666666666667,0]
[58,"1404/01/24",2,0,"32.366069,48.386110","32.368032,48.383622",20,3,"32.366207,48.385898",3186,4,4,0]
[59,"1404/01/24",2,0,"32.366069,48.386110","32.368032,48.383622",70,0.6,"32.366246,48.385849",3187,2.8,2.8,0]
[60,"1404/01/24",2,0,"32.366069,48.386110","32.368032,48.383622",20,53,"32.366290,48.385805",3188,70.666666666666671,70.666666666666671,0]
[61,"1404/01/24",2,0,"32.366069,48.386110","32.368032,48.383622",65,2.2000000000000002,"32.366675,48.385285",3189,9.5333333333333332,9.5333333333333332,0]
[62,"1404/01/24",2,0,"32.366069,48.386110","32.368032,48.383622",60,1.8,"32.366686,48.385267",3190,7.2,7.2,{"$f":"D67","v":0}]
[63,"1404/01/24",2,0,"32.366069,48.386110","32.368032,48.383622",10,18,"32.366926,48.385002",3191,12,12,0]
[64,"1404/01/24",2,0,"32.366069,48.386110","32.368032,48.383622",50,3.8,"32.368016,48.383616",3192,12.666666666666666,12.666666666666666,{"$f":"D69","v":0}]
[65,"1404/01/24",2,0,"خیابان مقام علی از نبش امام تاشهدای محراب",null,null,null,null,0,0,0,0]
[66,"1404/01/25",1,130,"32.380069,48.4210482","32.380492,48.419879",40,2,"32.380078,48.421034",3158,5.333333333333333,5.333333333333333,130]
[67,"1404/01/25",1,0,"32.380069,48.4210482","32.380492,48.419879",25,1.1000000000000001,"32.380101,48.421006",3159,1.8333333333333335,1.8333333333333335,0]
[68,"1404/01/25",1,0,"32.380069,48.4210482","32.380492,48.419879",35,1.8,"32.380153,48.420966",3160,4.2,4.2,0]
[69,"1404/01/25",1,0,"32.380069,48.4210482","32.380492,48.419879",20,16,"32.380147,48.420810",3161,21.333333333333332,21.333333333333332,0]
[70,"1404/01/25",1,0,"32.380069,48.4210482","32.380492,48.419879",10,14,"32.380223,48.420677",3162,9.3333333333333339,9.3333333333333339,0]
[71,"1404/01/25",1,0,"32.380069,48.4210482","32.380492,48.419879",20,7,"32.380239,48.420571",3163,9.3333333333333339,9.3333333333333339,0]
[72,"1404/01/25",1,0,"32.380069,48.4210482","32.380492,48.419879",60,1,"32.380348,48.420311",3164,4,4,0]
[73,"1404/01/25",1,0,"32.380069,48.4210482","32.380492,48.419879",50,3.4,"32.380452,48.419933",3165,11.333333333333334,11.333333333333334,0]
[74,"1404/01/25",1,0,"32.380069,48.4210482","32.380492,48.419879",25,2.5,"32.380483,48.419858",3166,4.166666666666667,4.166666666666667,0]
[75,"1404/01/25",1,0,"خیابان دکتر حسابی ازنبش قرنی نا انتهای مسیر",null,null,null,null,0,0,0,0]
[76,"1404/01/25",2,226,"32.373432,48.413457","32.374425,48.411575",45,1.2,"32.373521,48.413404",3173,3.6,3.6,226]
[77,"1404/01/25",2,0,"32.373432,48.413457","32.374425,48.411575",45,1.9,"32.373532,48.413379",3174,5.7,5.7,0]
[null,"جمع طولی",null,{"$f":"SUM(D57:D82)","v":743},"صفحه 3",null,null,null,"جمع مازاد",null,{"$f":"SUM(K57:K82)","v":231.3666666666667},0,0]
["ردیف","تاریخ","مسیر","طول مسیر","مختصات  ابتدای مسیر","مختصات  انتهای مسیر","عرض مازاد","طول مسیرعرض مازاد(m)","مختصات عرض مازاد","شماره عکس","معادل سازی متر طول",0,0]
[78,"1404/01/25",2,0,"32.373432,48.413457","32.374425,48.411575",140,0.9,"32.373572,48.413325",3175,{"$f":"H85*G85/15","v":8.4},{"$f":"K85","v":8.4},{"$f":"D85","v":0}]
[79,"1404/01/25",2,0,"32.373432,48.413457","32.374425,48.411575",10,8,"32.374061,48.412320",3176,{"$f":"H86*G86/15","v":5.333333333333333},5.333333333333333,0]
[80,"1404/01/25",2,0,"32.373432,48.413457","32.374425,48.411575",25,2.5,"32.374378,48.411526",3177,4.166666666666667,4.166666666666667,0]
[81,"1404/01/25",2,0,"32.373432,48.413457","32.374425,48.411575",30,2,"32.374353,48.411508",3178,4,4,0]
[82,"1404/01/25",2,0,"خیابان طالقاتی از نبش ابوریحان تا خیابان مطهری",null,null,null,null,null,0,0,0]
[83,"1404/01/30",1,61.5,"32.361988,48.402439","32.362270,48.401983",35,57,"32.362033,48.402345",3196,133,133,61.5]
[84,"1404/01/30",1,0,"32.361988,48.402439","32.362270,48.401983",120,1.4,"32.362122,48.402270",3197,11.2,11.2,0]
[85,"1404/01/30",1,0,"32.361988,48.402439","32.362270,48.401983",60,3,"32.362239,48.401963",3198,12,12,0]
[86,"1404/01/30",1,0,"خیابان بستان سعدی 33از نبش شهید حلبی زاده تا روبروی فلاحت 9",null,null,null,null,0,0,0,0]
[87,"1404/01/30",2,23,"32.366571,48.386541","32.366545,48.386706",40,2,"32.366571,48.386542",3207,5.333333333333333,5.333333333333333,23]
[88,"1404/01/30",2,0,"32.366571,48.386541","32.366545,48.386706",40,1.4,"32.366544,48.386662",3208,3.7333333333333334,3.7333333333333334,0]
[89,"1404/01/30",2,0,"32.366571,48.386541","32.366545,48.386706",50,2,"32.366545,48.386706",3209,6.666666666666667,6.666666666666667,0]
[90,"1404/01/30",2,0,"گذر خیابان امام جنوبی روبروی مخابرات",null,null,null,null,0,0,0,0]
[91,"1404/01/30",0,0,"تقاطع فردوسی وطباطبایی",null,200,2,"32.36467348.405003",3200,26.666666666666668,26.666666666666668,0]
[92,"1404/01/30",0,0,"تقاطع سعیدی 3 و19",null,200,2.2000000000000002,"32.36494,48.404979",3201,29.333333333333336,29.333333333333336,0]
[93,"1404/01/30",0,0,"تقاطع سعیدی 3 و19",null,100,1.4,"32.363193,48.405214",3201,9.3333333333333339,9.3333333333333339,0]
[94,"1404/01/30",0,0,"امام خمینی جنوبی",null,65,3,"32.366467,48.386802",3211,13,13,0]
[95,"1404/01/30",0,0,"امام خمینی جنوبی",null,40,2,"32.366467,48.38680",3212,5.333333333333333,5.333333333333333,0]
[96,"1404/01/30",0,0,"امام خمینی جنوبی",null,70,1.5,"32.366471,48.386797",3213,7,7,0]
[97,"1404/01/30",0,0,"شهدای محراب تقاطع مقام علی",null,65,2.2000000000000002,"32.367931,48.383531",3214,9.5333333333333332,9.5333333333333332,0]
[98,"1404/01/30",0,0,"خیابان شهدای محراب",null,50,3.3,"32.367865,48.387029",3215,11,11,0]
[99,"1404/01/30",0,0,"خیابان شهدای محراب",null,190,1.1000000000000001,"32.367881,48.387036",3216,13.933333333333335,13.933333333333335,0]
[100,"1404/01/30",0,0,"خیابان بوستان سعدی",null,55,1.1000000000000001,"32.361889,48.404855",3217,4.0333333333333341,4.0333333333333341,0]
[101,"1404/01/30",0,0,"خیابان بوستان سعدی",null,35,12,"32.361914,48.404756",3218,28,28,0]
[102,"1404/01/30",0,0,"بلوارطباطبایی",null,110,2,"32.369265,48.394987",3219,14.666666666666666,14.666666666666666,0]
[103,"1404/01/30",0,0,"خیابان بعثت و میدان احمدی",null,80,2,"32.369344,48.394979",3220,10.666666666666666,10.666666666666666,0]
[null,"جمع طولی",null,{"$f":"SUM(D85:D110)","v":84.5},"صفحه 4",null,null,null,"جمع مازاد",null,{"$f":"SUM(K85:K110)","v":376.33333333333337},0,0]
["ردیف","تاریخ","مسیر","طول مسیر","مختصات  ابتدای مسیر","مختصات  انتهای مسیر","عرض مازاد","طول مسیرعرض مازاد(m)","مختصات عرض مازاد","شماره عکس","معادل سازی متر طول",0,0]
[104,"1404/01/30",0,0,"--بوستان سعدی نبش سعدی 3",null,165,1.65,"32.362784,48.400905",3221,{"$f":"H113*G113/15","v":18.149999999999999},{"$f":"K113","v":18.149999999999999},0]
[105,"1404/01/30",0,0,"تقاطع بستان سعدی و شاه مرادی",null,45,3.2,"32.363977,48.400541",3222,{"$f":"H114*G114/15","v":9.6},9.6,0]
[106,"1404/01/30",0,0,"بلوارطباطبایی نبش افرینش",null,170,1.7,"32.366061,48.402060",3223,19.266666666666666,19.266666666666666,0]
[107,null,null,null,null,null,null,null,null,null,{"$f":"H116*G116/10","v":0},0,0]
[108,null,null,null,null,null,null,null,null,null,0,0,0]
[109,null,null,null,"مجموع طول مسير",1610,null,null,null,null,0,0,0]
[110,null,null,null,"مجموع  مازاد مسیر",998,null,null,null,null,0,0,0]
[111,null,null,null,null,null,null,null,null,null,0,0,0]
[112,null,null,null,null,null,null,null,null,null,0,0,0]
[113,null,null,null,null,null,null,null,null,null,{"$f":"H122*G122/10","v":0},0,0]
[114,null,null,null,null,null,null,null,null,null,0,0,0]
[115,null,null,null,null,null,null,null,null,null,{"$f":"H124*G124/10","v":0},0,0]
[116,null,null,null,null,null,null,null,null,null,{"$f":"H125*G125/10","v":0},0,0]
[117,null,null,null,null,null,null,null,null,null,0,0,0]
[118,null,null,null,null,null,null,null,null,null,0,0,0]
[119,null,null,null,null,null,null,null,null,null,{"$f":"H128*G128/10","v":0},0,0]
[120,null,null,null,null,null,null,null,null,null,{"$f":"H129*G129/10","v":0},0,0]
[121,null,null,null,null,null,null,null,null,null,0,0,0]
[122,null,null,null,null,null,null,null,null,null,0,0,{"$f":"D131","v":0}]
[123,null,null,null,null,null,null,null,null,null,0,0,0]
[124,null,null,null,null,null,null,null,null,null,0,0,0]
[125,null,null,null,null,null,null,null,null,null,0,0,0]
[126,null,null,null,null,null,null,null,null,null,{"$f":"H135*G135/10","v":0},0,0]
[127,null,null,null,null,null,null,null,null,null,{"$f":"H136*G136/10","v":0},0,0]
[128,null,null,null,null,null,null,null,null,null,0,0,0]
[null,"جمع طولی",null,{"$f":"SUM(D113:D137)","v":0},"صفحه 5",null,null,null,"جمع مازاد",null,{"$f":"SUM(K113:K137)","v":47.016666666666666},0,0]
["ردیف","تاریخ","مسیر","طول مسیر","مختصات  ابتدای مسیر","مختصات  انتهای مسیر","عرض مازاد","طول مسیرعرض مازاد(m)","مختصات عرض مازاد","شماره عکس","معادل سازی متر طول",0,0]
[130,null,null,null,null,null,null,null,null,null,{"$f":"H140*G140/10","v":0},{"$f":"K140","v":0},{"$f":"D140","v":0}]
[131,null,null,null,null,null,null,null,null,null,{"$f":"H141*G141/10","v":0},0,0]
[132,null,null,null,null,null,null,null,null,null,0,0,0]
[133,null,null,null,null,null,null,null,null,null,0,0,0]
[134,null,null,null,null,null,null,null,null,null,0,0,0]
[135,null,null,null,null,null,null,null,null,null,0,0,0]
[136,null,null,null,null,null,null,null,null,null,0,0,0]
[137,null,null,null,null,null,null,null,null,null,0,0,0]
[138,null,null,null,null,null,null,null,null,null,0,0,0]
[139,null,null,null,null,null,null,null,null,null,{"$f":"H149*G149/10","v":0},0,0]
[140,null,null,null,null,null,null,null,null,null,0,0,0]
[141,null,null,null,null,null,null,null,null,null,0,{"$f":"K151","v":0},0]
[142,null,null,null,null,null,null,null,null,null,0,{"$f":"K152","v":0},0]
[143,null,null,null,null,null,null,null,null,null,0,0,0]
[144,null,null,null,null,null,null,null,null,null,0,0,0]
[145,null,null,null,null,null,null,null,null,null,0,0,0]
[146,null,null,null,null,null,null,null,null,null,0,0,0]
[147,null,null,null,null,null,null,null,null,null,0,0,0]
[148,null,null,null,null,null,null,null,null,null,0,0,0]
[149,null,null,null,null,null,null,null,null,null,0,0,0]
[150,null,null,null,null,null,null,null,null,null,{"$f":"H160*G160/10","v":0},0,0]
[151,null,null,null,null,null,null,null,null,null,0,0,0]
[152,null,null,null,null,null,null,null,null,null,0,0,0]
[153,null,null,null,null,null,null,null,null,null,0,0,0]
[154,null,null,null,null,null,null,null,null,null,0,0,0]
[155,null,null,null,null,null,null,null,null,null,0,0,0]
[null,"جمع طولی",null,{"$f":"SUM(D140:D165)","v":0},"صفحه 6",null,null,null,"جمع مازاد",null,{"$f":"SUM(K140:K165)","v":0},0,0]
["ردیف","تاریخ","مسیر","طول مسیر","مختصات  ابتدای مسیر","مختصات  انتهای مسیر","عرض مازاد","طول مسیرعرض مازاد(m)","مختصات عرض مازاد","شماره عکس","معادل سازی متر طول",0,0]
[130,null,null,null,null,null,null,null,null,null,{"$f":"H168*G168/10","v":0},0,0]
[131,null,null,null,null,null,null,null,null,null,{"$f":"H169*G169/10","v":0},0,0]
[132,null,null,null,null,null,null,null,null,null,0,0,0]
[133,null,null,null,null,null,null,null,null,null,0,0,0]
[134,null,null,null,null,null,null,null,null,null,0,0,0]
[135,null,null,null,null,null,null,null,null,null,0,0,0]
[136,null,null,null,null,null,null,null,null,null,0,0,0]
[137,null,null,null,null,null,null,null,null,null,0,0,0]
[138,null,null,null,null,null,null,null,null,null,0,0,0]
[139,null,null,null,null,null,null,null,null,null,0,0,0]
[140,null,null,null,null,null,null,null,null,null,0,0,0]
[141,null,null,null,null,null,null,null,null,null,0,0,0]
[142,null,null,null,null,null,null,null,null,null,0,0,0]
[143,null,null,null,null,null,null,null,null,null,0,{"$f":"K181","v":0},0]
[144,null,null,null,null,null,null,null,null,null,0,{"$f":"K182","v":0},0]
[145,null,null,null,null,null,null,null,null,null,0,0,0]
[146,null,null,null,null,null,null,null,null,null,0,0,0]
[147,null,null,null,null,null,null,null,null,null,0,0,0]
[148,null,null,null,null,null,null,null,null,null,0,0,0]
[149,null,null,null,null,null,null,null,null,null,0,0,0]
[150,null,null,null,null,null,null,null,null,null,0,0,0]
[151,null,null,null,null,null,null,null,null,null,0,0,0]
[152,null,null,null,null,null,null,null,null,null,0,0,0]
[153,null,null,null,null,null,null,null,null,null,0,0,0]
[154,null,null,null,null,null,null,null,null,null,0,0,0]
[155,null,null,null,null,null,null,null,null,null,0,0,0]
[null,"جمع طولی",null,{"$f":"SUM(D168:D193)","v":0},"صفحه 6",null,null,null,"جمع مازاد",null,{"$f":"SUM(K168:K193)","v":0},0,0]
["ردیف","تاریخ","مسیر","طول مسیر","مختصات  ابتدای مسیر","مختصات  انتهای مسیر","عرض مازاد","طول مسیرعرض مازاد(m)","مختصات عرض مازاد","شماره عکس","معادل سازی متر طول",0,0]
[130,null,null,null,null,null,null,null,null,null,{"$f":"H196*G196/10","v":0},0,{"$f":"D196","v":0}]
[131,null,null,null,null,null,null,null,null,null,{"$f":"H197*G197/10","v":0},0,0]
[132,null,null,null,null,null,null,null,null,null,0,0,0]
[133,null,null,null,null,null,null,null,null,null,0,0,0]
[134,null,null,null,null,null,null,null,null,null,0,0,0]
[135,null,null,null,null,null,null,null,null,null,0,0,0]
[136,null,null,null,null,null,null,null,null,null,0,0,0]
[137,null,null,null,null,null,null,null,null,null,0,0,0]
[138,null,null,null,null,null,null,null,null,null,0,0,0]
[139,null,null,null,null,null,null,null,null,null,0,0,0]
[140,null,null,null,null,null,null,null,null,null,0,0,0]
[141,null,null,null,null,null,null,null,null,null,0,0,0]
[142,null,null,null,null,null,null,null,null,null,0,0,0]
[143,null,null,null,null,null,null,null,null,null,0,0,0]
[144,null,null,null,null,null,null,null,null,null,0,0,0]
[145,null,null,null,null,null,null,null,null,null,0,{"$f":"K211","v":0},0]
[146,null,null,null,null,null,null,null,null,null,0,{"$f":"K212","v":0},0]
[147,null,null,null,null,null,null,null,null,null,0,0,0]
[148,null,null,null,null,null,null,null,null,null,0,0,0]
[149,null,null,null,null,null,null,null,null,null,0,0,0]
[150,null,null,null,null,null,null,null,null,null,0,0,0]
[151,null,null,null,null,null,null,null,null,null,0,0,0]
[152,null,null,null,null,null,null,null,null,null,0,0,0]
[153,null,null,null,null,null,null,null,null,null,0,0,0]
[154,null,null,null,null,null,null,null,null,null,0,0,0]
[155,null,null,null,null,null,null,null,null,null,0,0,0]
[null,"جمع طولی",null,{"$f":"SUM(D196:D221)","v":0},"صفحه 6",null,null,null,"جمع مازاد",null,{"$f":"SUM(K196:K221)","v":0},0,0]
["ردیف","تاریخ","مسیر","طول مسیر","مختصات  ابتدای مسیر","مختصات  انتهای مسیر","عرض مازاد","طول مسیرعرض مازاد(m)","مختصات عرض مازاد","شماره عکس","معادل سازی متر طول",0,0]
[130,null,null,null,null,null,null,null,null,null,{"$f":"H224*G224/10","v":0},0,0]
[131,null,null,null,null,null,null,null,null,null,{"$f":"H225*G225/10","v":0},0,0]
[132,null,null,null,null,null,null,null,null,null,0,0,0]
[133,null,null,null,null,null,null,null,null,null,0,0,0]
[134,null,null,null,null,null,null,null,null,null,0,0,0]
[135,null,null,null,null,null,null,null,null,null,0,0,0]
[136,null,null,null,null,null,null,null,null,null,0,0,0]
[137,null,null,null,null,null,null,null,null,null,0,0,0]
[138,null,null,null,null,null,null,null,null,null,0,0,0]
[139,null,null,null,null,null,null,null,null,null,0,0,0]
[140,null,null,null,null,null,null,null,null,null,0,0,0]
[141,null,null,null,null,null,null,null,null,null,0,0,0]
[142,null,null,null,null,null,null,null,null,null,0,0,0]
[143,null,null,null,null,null,null,null,null,null,0,0,0]
[144,null,null,null,null,null,null,null,null,null,0,0,0]
[145,null,null,null,null,null,null,null,null,null,0,0,0]
[146,null,null,null,null,null,null,null,null,null,0,0,0]
[147,null,null,null,null,null,null,null,null,null,0,{"$f":"K241","v":0},0]
[148,null,null,null,null,null,null,null,null,null,0,{"$f":"K242","v":0},0]
[149,null,null,null,null,null,null,null,null,null,0,0,0]
[150,null,null,null,null,null,null,null,null,null,0,0,0]
[151,null,null,null,null,null,null,null,null,null,0,0,0]
[152,null,null,null,null,null,null,null,null,null,0,0,0]
[153,null,null,null,null,null,null,null,null,null,0,0,0]
[154,null,null,null,null,null,null,null,null,null,0,0,0]
[155,null,null,null,null,null,null,null,null,null,0,0,0]
[null,"جمع طولی",null,{"$f":"SUM(D224:D249)","v":0},"صفحه 6",null,null,null,"جمع مازاد",null,{"$f":"SUM(K224:K249)","v":0},0,0]
["ردیف","تاریخ","مسیر","طول مسیر","مختصات  ابتدای مسیر","مختصات  انتهای مسیر","عرض مازاد","طول مسیرعرض مازاد(m)","مختصات عرض مازاد","شماره عکس","معادل سازی متر طول",0,0]
[130,null,null,null,null,null,null,null,null,null,{"$f":"H252*G252/10","v":0},0,0]
[131,null,null,null,null,null,null,null,null,null,{"$f":"H253*G253/10","v":0},0,0]
[132,null,null,null,null,null,null,null,null,null,0,0,0]
[133,null,null,null,null,null,null,null,null,null,0,0,0]
[134,null,null,null,null,null,null,null,null,null,0,0,0]
[135,null,null,null,null,null,null,null,null,null,0,0,0]
[136,null,null,null,null,null,null,null,null,null,0,0,{"$f":"D258","v":0}]
[137,null,null,null,null,null,null,null,null,null,0,0,0]
[138,null,null,null,null,null,null,null,null,null,0,0,0]
[139,null,null,null,null,null,null,null,null,null,0,0,0]
[140,null,null,null,null,null,null,null,null,null,0,0,0]
[141,null,null,null,null,null,null,null,null,null,0,0,0]
[142,null,null,null,null,null,null,null,null,null,0,0,0]
[143,null,null,null,null,null,null,null,null,null,0,0,0]
[144,null,null,null,null,null,null,null,null,null,0,0,0]
[145,null,null,null,null,null,null,null,null,null,0,0,0]
[146,null,null,null,null,null,null,null,null,null,0,0,0]
[147,null,null,null,null,null,null,null,null,null,0,0,0]
[148,null,null,null,null,null,null,null,null,null,0,0,0]
[149,null,null,null,null,null,null,null,null,null,0,{"$f":"K271","v":0},0]
[150,null,null,null,null,null,null,null,null,null,0,{"$f":"K272","v":0},0]
[151,null,null,null,null,null,null,null,null,null,0,0,0]
[152,null,null,null,null,null,null,null,null,null,0,0,0]
[153,null,null,null,null,null,null,null,null,null,0,0,0]
[154,null,null,null,null,null,null,null,null,null,0,0,0]
[155,null,null,null,null,null,null,null,null,null,0,0,0]
[null,"جمع طولی",null,{"$f":"SUM(D252:D277)","v":0},"صفحه 6",null,null,null,"جمع مازاد",null,{"$f":"SUM(K252:K277)","v":0},0,0]
["ردیف","تاریخ","مسیر","طول مسیر","مختصات  ابتدای مسیر","مختصات  انتهای مسیر","عرض مازاد","طول مسیرعرض مازاد(m)","مختصات عرض مازاد","شماره عکس","معادل سازی متر طول",0,0]
[130,null,null,null,null,null,null,null,null,null,{"$f":"H280*G280/10","v":0},0,0]
[131,null,null,null,null,null,null,null,null,null,{"$f":"H281*G281/10","v":0},0,0]
[132,null,null,null,null,null,null,null,null,null,0,0,0]
[133,null,null,null,null,null,null,null,null,null,0,0,0]
[134,null,null,null,null,null,null,null,null,null,0,0,0]
[135,null,null,null,null,null,null,null,null,null,0,0,0]
[136,null,null,null,null,null,null,null,null,null,0,0,0]
[137,null,null,null,null,null,null,null,null,null,0,0,0]
[138,null,null,null,null,null,null,null,null,null,0,0,0]
[139,null,null,null,null,null,null,null,null,null,0,0,0]
[140,null,null,null,null,null,null,null,null,null,0,0,0]
[141,null,null,null,null,null,null,null,null,null,0,0,0]
[142,null,null,null,null,null,null,null,null,null,0,0,0]
[143,null,null,null,null,null,null,null,null,null,0,0,0]
[144,null,null,null,null,null,null,null,null,null,0,0,0]
[145,null,null,null,null,null,null,null,null,null,0,0,0]
[146,null,null,null,null,null,null,null,null,null,0,0,0]
[147,null,null,null,null,null,null,null,null,null,0,0,0]
[148,null,null,null,null,null,null,null,null,null,0,0,0]
[149,null,null,null,null,null,null,null,null,null,0,0,0]
[150,null,null,null,null,null,null,null,null,null,0,0,0]
[151,null,null,null,null,null,null,null,null,null,0,{"$f":"K301","v":0},0]
[152,null,null,null,null,null,null,null,null,null,0,{"$f":"K302","v":0},0]
[153,null,null,null,null,null,null,null,null,null,0,0,0]
[154,null,null,null,null,null,null,null,null,null,0,0,0]
[155,null,null,null,null,null,null,null,null,null,0,0,0]
[null,"جمع طولی",null,{"$f":"SUM(D280:D305)","v":0},"صفحه 6",null,null,null,"جمع مازاد",null,{"$f":"SUM(K280:K305)","v":0},0,0]
["ردیف","تاریخ","مسیر","طول مسیر","مختصات  ابتدای مسیر","مختصات  انتهای مسیر","عرض مازاد","طول مسیرعرض مازاد(m)","مختصات عرض مازاد","شماره عکس","معادل سازی متر طول",0,0]
[130,null,null,null,null,null,null,null,null,null,{"$f":"H308*G308/10","v":0},0,0]
[131,null,null,null,null,null,null,null,null,null,{"$f":"H309*G309/10","v":0},0,0]
[132,null,null,null,null,null,null,null,null,null,0,0,0]
[133,null,null,null,null,null,null,null,null,null,0,0,0]
[134,null,null,null,null,null,null,null,null,null,0,0,0]
[135,null,null,null,null,null,null,null,null,null,0,0,0]
[136,null,null,null,null,null,null,null,null,null,0,0,0]
[137,null,null,null,null,null,null,null,null,null,0,0,0]
[138,null,null,null,null,null,null,null,null,null,0,0,0]
[139,null,null,null,null,null,null,null,null,null,0,0,0]
[140,null,null,null,null,null,null,null,null,null,0,0,0]
[141,null,null,null,null,null,null,null,null,null,0,0,0]
[142,null,null,null,null,null,null,null,null,null,0,0,0]
[143,null,null,null,null,null,null,null,null,null,0,0,0]
[144,null,null,null,null,null,null,null,null,null,0,0,{"$f":"D322","v":0}]
[145,null,null,null,null,null,null,null,null,null,0,0,0]
[146,null,null,null,null,null,null,null,null,null,0,0,0]
[147,null,null,null,null,null,null,null,null,null,0,0,0]
[148,null,null,null,null,null,null,null,null,null,0,0,0]
[149,null,null,null,null,null,null,null,null,null,0,0,0]
[150,null,null,null,null,null,null,null,null,null,0,0,0]
[151,null,null,null,null,null,null,null,null,null,0,0,0]
[152,null,null,null,null,null,null,null,null,null,0,0,0]
[153,null,null,null,null,null,null,null,null,null,0,0,0]
[154,null,null,null,null,null,null,null,null,null,0,0,0]
[155,null,null,null,null,null,null,null,null,null,0,0,0]
[null,"جمع طولی",null,{"$f":"SUM(D308:D333)","v":0},"صفحه 6",null,null,null,"جمع مازاد",null,{"$f":"SUM(K308:K333)","v":0},0,0]
["ردیف","تاریخ","مسیر","طول مسیر","مختصات  ابتدای مسیر","مختصات  انتهای مسیر","عرض مازاد","طول مسیرعرض مازاد(m)","مختصات عرض مازاد","شماره عکس","معادل سازی متر طول",0,0]
[130,null,null,null,null,null,null,null,null,null,{"$f":"H336*G336/10","v":0},0,0]
[131,null,null,null,null,null,null,null,null,null,{"$f":"H337*G337/10","v":0},0,0]
[132,null,null,null,null,null,null,null,null,null,0,0,0]
[133,null,null,null,null,null,null,null,null,null,0,0,0]
[134,null,null,null,null,null,null,null,null,null,0,0,0]
[135,null,null,null,null,null,null,null,null,null,0,0,0]
[136,null,null,null,null,null,null,null,null,null,0,0,0]
[137,null,null,null,null,null,null,null,null,null,0,0,0]
[138,null,null,null,null,null,null,null,null,null,0,0,0]
[139,null,null,null,null,null,null,null,null,null,0,0,0]
[140,null,null,null,null,null,null,null,null,null,0,0,0]
[141,null,null,null,null,null,null,null,null,null,0,0,0]
[142,null,null,null,null,null,null,null,null,null,0,0,0]
[143,null,null,null,null,null,null,null,null,null,0,0,0]
[144,null,null,null,null,null,null,null,null,null,0,0,0]
[145,null,null,null,null,null,null,null,null,null,0,0,0]
[146,null,null,null,null,null,null,null,null,null,0,0,0]
[147,null,null,null,null,null,null,null,null,null,0,0,0]
[148,null,null,null,null,null,null,null,null,null,0,0,0]
[149,null,null,null,null,null,null,null,null,null,0,0,0]
[150,null,null,null,null,null,null,null,null,null,0,0,0]
[151,null,null,null,null,null,null,null,null,null,0,0,0]
[152,null,null,null,null,null,null,null,null,null,0,0,0]
[153,null,null,null,null,null,null,null,null,null,0,0,0]
[154,null,null,null,null,null,null,null,null,null,0,0,0]
[155,null,null,null,null,null,null,null,null,null,0,0,0]
[null,"جمع طولی",null,{"$f":"SUM(D336:D361)","v":0},"صفحه 6",null,null,null,"جمع مازاد",null,{"$f":"SUM(K336:K361)","v":0},0,0]
["ردیف","تاریخ","مسیر","طول مسیر","مختصات  ابتدای مسیر","مختصات  انتهای مسیر","عرض مازاد","طول مسیرعرض مازاد(m)","مختصات عرض مازاد","شماره عکس","معادل سازی متر طول",0,0]
[130,null,null,null,null,null,null,null,null,null,{"$f":"H364*G364/10","v":0},0,0]
[131,null,null,null,null,null,null,null,null,null,{"$f":"H365*G365/10","v":0},0,0]
[132,null,null,null,null,null,null,null,null,null,0,{"$f":"K366","v":0},0]
[133,null,null,null,null,null,null,null,null,null,0,0,0]
[134,null,null,null,null,null,null,null,null,null,0,0,0]
[135,null,null,null,null,null,null,null,null,null,0,0,0]
[136,null,null,null,null,null,null,null,null,null,0,0,0]
[137,null,null,null,null,null,null,null,null,null,0,0,0]
[138,null,null,null,null,null,null,null,null,null,0,0,0]
[139,null,null,null,null,null,null,null,null,null,0,0,0]
[140,null,null,null,null,null,null,null,null,null,0,0,0]
[141,null,null,null,null,null,null,null,null,null,0,0,0]
[142,null,null,null,null,null,null,null,null,null,0,0,0]
[143,null,null,null,null,null,null,null,null,null,0,0,0]
[144,null,null,null,null,null,null,null,null,null,0,0,0]
[145,null,null,null,null,null,null,null,null,null,0,0,0]
[146,null,null,null,null,null,null,null,null,null,0,0,0]
[147,null,null,null,null,null,null,null,null,null,0,0,0]
[148,null,null,null,null,null,null,null,null,null,0,0,0]
[149,null,null,null,null,null,null,null,null,null,0,0,0]
[150,null,null,null,null,null,null,null,null,null,0,0,0]
[151,null,null,null,null,null,null,null,null,null,0,0,0]
[152,null,null,null,null,null,null,null,null,null,0,0,{"$f":"D386","v":0}]
[153,null,null,null,null,null,null,null,null,null,0,0,0]
[154,null,null,null,null,null,null,null,null,null,0,0,0]
[155,null,null,null,null,null,null,null,null,null,0,0,0]
[null,"جمع طولی",null,{"$f":"SUM(D364:D389)","v":0},"صفحه 6",null,null,null,"جمع مازاد",null,{"$f":"SUM(K364:K389)","v":0},0,0]
["ردیف","تاریخ","مسیر","طول مسیر","مختصات  ابتدای مسیر","مختصات  انتهای مسیر","عرض مازاد","طول مسیرعرض مازاد(m)","مختصات عرض مازاد","شماره عکس","معادل سازی متر طول",0,0]
[130,null,null,null,null,null,null,null,null,null,{"$f":"H392*G392/10","v":0},0,0]
[131,null,null,null,null,null,null,null,null,null,{"$f":"H393*G393/10","v":0},0,0]
[132,null,null,null,null,null,null,null,null,null,0,0,0]
[133,null,null,null,null,null,null,null,null,null,0,0,0]
[134,null,null,null,null,null,null,null,null,null,0,0,0]
[135,null,null,null,null,null,null,null,null,null,0,0,0]
[136,null,null,null,null,null,null,null,null,null,0,0,0]
[137,null,null,null,null,null,null,null,null,null,0,0,0]
[138,null,null,null,null,null,null,null,null,null,0,0,0]
[139,null,null,null,null,null,null,null,null,null,0,0,0]
[140,null,null,null,null,null,null,null,null,null,0,0,0]
[141,null,null,null,null,null,null,null,null,null,0,0,0]
[142,null,null,null,null,null,null,null,null,null,0,0,0]
[143,null,null,null,null,null,null,null,null,null,0,0,0]
[144,null,null,null,null,null,null,null,null,null,0,0,0]
[145,null,null,null,null,null,null,null,null,null,0,0,0]
[146,null,null,null,null,null,null,null,null,null,0,0,0]
[147,null,null,null,null,null,null,null,null,null,0,0,0]
[148,null,null,null,null,null,null,null,null,null,0,0,0]
[149,null,null,null,null,null,null,null,null,null,0,0,0]
[150,null,null,null,null,null,null,null,null,null,0,0,0]
[151,null,null,null,null,null,null,null,null,null,0,0,0]
[152,null,null,null,null,null,null,null,null,null,0,0,0]
[153,null,null,null,null,null,null,null,null,null,0,0,0]
[154,null,null,null,null,null,null,null,null,null,0,0,0]
[155,null,null,null,null,null,null,null,null,null,0,0,0]
[null,"جمع طولی",null,{"$f":"SUM(D392:D417)","v":0},"صفحه 6",null,null,null,"جمع مازاد",null,{"$f":"SUM(K392:K417)","v":0},0,0]
["ردیف","تاریخ","مسیر","طول مسیر","مختصات  ابتدای مسیر","مختصات  انتهای مسیر","عرض مازاد","طول مسیرعرض مازاد(m)","مختصات عرض مازاد","شماره عکس","معادل سازی متر طول",0,0]
[130,null,null,null,null,null,null,null,null,null,{"$f":"H420*G420/10","v":0},0,0]
[131,null,null,null,null,null,null,null,null,null,{"$f":"H421*G421/10","v":0},0,0]
[132,null,null,null,null,null,null,null,null,null,0,0,0]
[133,null,null,null,null,null,null,null,null,null,0,0,0]
[134,null,null,null,null,null,null,null,null,null,0,0,0]
[135,null,null,null,null,null,null,null,null,null,0,0,0]
[136,null,null,null,null,null,null,null,null,null,0,0,0]
[137,null,null,null,null,null,null,null,null,null,0,0,0]
[138,null,null,null,null,null,null,null,null,null,0,0,0]
[139,null,null,null,null,null,null,null,null,null,0,0,0]
[140,null,null,null,null,null,null,null,null,null,0,{"$f":"K430","v":0},0]
[141,null,null,null,null,null,null,null,null,null,0,0,0]
[142,null,null,null,null,null,null,null,null,null,0,0,0]
[143,null,null,null,null,null,null,null,null,null,0,0,0]
[144,null,null,null,null,null,null,null,null,null,0,0,0]
[145,null,null,null,null,null,null,null,null,null,0,0,0]
[146,null,null,null,null,null,null,null,null,null,0,0,0]
[147,null,null,null,null,null,null,null,null,null,0,0,0]
[148,null,null,null,null,null,null,null,null,null,0,0,0]
[149,null,null,null,null,null,null,null,null,null,0,0,0]
[150,null,null,null,null,null,null,null,null,null,0,0,0]
[151,null,null,null,null,null,null,null,null,null,0,0,0]
[152,null,null,null,null,null,null,null,null,null,0,0,0]
[153,null,null,null,null,null,null,null,null,null,0,0,0]
[154,null,null,null,null,null,null,null,null,null,0,0,0]
[155,null,null,null,null,null,null,null,null,null,0,0,0]
[null,"جمع طولی",null,{"$f":"SUM(D420:D445)","v":0},"صفحه 6",null,null,null,"جمع مازاد",null,{"$f":"SUM(K420:K445)","v":0},0,0]
["ردیف","تاریخ","مسیر","طول مسیر","مختصات  ابتدای مسیر","مختصات  انتهای مسیر","عرض مازاد","طول مسیرعرض مازاد(m)","مختصات عرض مازاد","شماره عکس","معادل سازی متر طول",0,0]
[130,null,null,null,null,null,null,null,null,null,{"$f":"H448*G448/10","v":0},0,0]
[131,null,null,null,null,null,null,null,null,null,{"$f":"H449*G449/10","v":0},0,0]
[132,null,null,null,null,null,null,null,null,null,0,0,0]
[133,null,null,null,null,null,null,null,null,null,0,0,{"$f":"D451","v":0}]
[134,null,null,null,null,null,null,null,null,null,0,0,0]
[135,null,null,null,null,null,null,null,null,null,0,0,0]
[136,null,null,null,null,null,null,null,null,null,0,0,0]
[137,null,null,null,null,null,null,null,null,null,0,0,0]
[138,null,null,null,null,null,null,null,null,null,0,0,0]
[139,null,null,null,null,null,null,null,null,null,0,0,0]
[140,null,null,null,null,null,null,null,null,null,0,0,0]
[141,null,null,null,null,null,null,null,null,null,0,0,0]
[142,null,null,null,null,null,null,null,null,null,0,0,0]
[143,null,null,null,null,null,null,null,null,null,0,0,0]
[144,null,null,null,null,null,null,null,null,null,0,0,0]
[145,null,null,null,null,null,null,null,null,null,0,0,0]
[146,null,null,null,null,null,null,null,null,null,0,0,0]
[147,null,null,null,null,null,null,null,null,null,0,0,0]
[148,null,null,null,null,null,null,null,null,null,0,0,0]
[149,null,null,null,null,null,null,null,null,null,0,0,0]
[150,null,null,null,null,null,null,null,null,null,0,0,0]
[151,null,null,null,null,null,null,null,null,null,0,0,0]
[152,null,null,null,null,null,null,null,null,null,0,0,0]
[153,null,null,null,null,null,null,null,null,null,0,0,0]
[154,null,null,null,null,null,null,null,null,null,0,0,0]
[155,null,null,null,null,null,null,null,null,null,0,0,0]
[null,"جمع طولی",null,{"$f":"SUM(D448:D473)","v":0},"صفحه 6",null,null,null,"جمع مازاد",null,{"$f":"SUM(K448:K473)","v":0},0,0]
["ردیف","تاریخ","مسیر","طول مسیر","مختصات  ابتدای مسیر","مختصات  انتهای مسیر","عرض مازاد","طول مسیرعرض مازاد(m)","مختصات عرض مازاد","شماره عکس","معادل سازی متر طول",0,0]
[130,null,null,null,null,null,null,null,null,null,{"$f":"H476*G476/10","v":0},0,0]
[131,null,null,null,null,null,null,null,null,null,{"$f":"H477*G477/10","v":0},0,0]
[132,null,null,null,null,null,null,null,null,null,0,0,0]
[133,null,null,null,null,null,null,null,null,null,0,0,0]
[134,null,null,null,null,null,null,null,null,null,0,0,0]
[135,null,null,null,null,null,null,null,null,null,0,0,0]
[136,null,null,null,null,null,null,null,null,null,0,0,0]
[137,null,null,null,null,null,null,null,null,null,0,0,0]
[138,null,null,null,null,null,null,null,null,null,0,0,0]
[139,null,null,null,null,null,null,null,null,null,0,0,0]
[140,null,null,null,null,null,null,null,null,null,0,0,0]
[141,null,null,null,null,null,null,null,null,null,0,0,0]
[142,null,null,null,null,null,null,null,null,null,0,0,0]
[143,null,null,null,null,null,null,null,null,null,0,0,0]
[144,null,null,null,null,null,null,null,null,null,0,0,0]
[145,null,null,null,null,null,null,null,null,null,0,0,0]
[146,null,null,null,null,null,null,null,null,null,0,0,0]
[147,null,null,null,null,null,null,null,null,null,0,0,0]
[148,null,null,null,null,null,null,null,null,null,0,{"$f":"K494","v":0},0]
[149,null,null,null,null,null,null,null,null,null,0,0,0]
[150,null,null,null,null,null,null,null,null,null,0,0,0]
[151,null,null,null,null,null,null,null,null,null,0,0,0]
[152,null,null,null,null,null,null,null,null,null,0,0,0]
[153,null,null,null,null,null,null,null,null,null,0,0,0]
[154,null,null,null,null,null,null,null,null,null,0,0,0]
[155,null,null,null,null,null,null,null,null,null,0,0,0]
[null,"جمع طولی",null,{"$f":"SUM(D476:D501)","v":0},"صفحه 6",null,null,null,"جمع مازاد",null,{"$f":"SUM(K476:K501)","v":0},0,0]
["ردیف","تاریخ","مسیر","طول مسیر","مختصات  ابتدای مسیر","مختصات  انتهای مسیر","عرض مازاد","طول مسیرعرض مازاد(m)","مختصات عرض مازاد","شماره عکس","معادل سازی متر طول",0,0]
[130,null,null,null,null,null,null,null,null,null,{"$f":"H504*G504/10","v":0},0,0]
[131,null,null,null,null,null,null,null,null,null,{"$f":"H505*G505/10","v":0},0,0]
[132,null,null,null,null,null,null,null,null,null,0,0,0]
[133,null,null,null,null,null,null,null,null,null,0,0,0]
[134,null,null,null,null,null,null,null,null,null,0,0,0]
[135,null,null,null,null,null,null,null,null,null,0,0,0]
[136,null,null,null,null,null,null,null,null,null,0,0,0]
[137,null,null,null,null,null,null,null,null,null,0,0,0]
[138,null,null,null,null,null,null,null,null,null,0,0,0]
[139,null,null,null,null,null,null,null,null,null,0,0,0]
[140,null,null,null,null,null,null,null,null,null,0,0,0]
[141,null,null,null,null,null,null,null,null,null,0,0,{"$f":"D515","v":0}]
[142,null,null,null,null,null,null,null,null,null,0,0,0]
[143,null,null,null,null,null,null,null,null,null,0,0,0]
[144,null,null,null,null,null,null,null,null,null,0,0,0]
[145,null,null,null,null,null,null,null,null,null,0,0,0]
[146,null,null,null,null,null,null,null,null,null,0,0,0]
[147,null,null,null,null,null,null,null,null,null,0,0,0]
[148,null,null,null,null,null,null,null,null,null,0,0,0]
[149,null,null,null,null,null,null,null,null,null,0,0,0]
[150,null,null,null,null,null,null,null,null,null,0,0,0]
[151,null,null,null,null,null,null,null,null,null,0,0,0]
[152,null,null,null,null,null,null,null,null,null,0,0,0]
[153,null,null,null,null,null,null,null,null,null,0,0,0]
[154,null,null,null,null,null,null,null,null,null,0,0,0]
[155,null,null,null,null,null,null,null,null,null,0,0,0]
[null,"جمع طولی",null,{"$f":"SUM(D504:D529)","v":0},"صفحه 6",null,null,null,"جمع مازاد",null,{"$f":"SUM(K504:K529)","v":0},0,0]
["ردیف","تاریخ","مسیر","طول مسیر","مختصات  ابتدای مسیر","مختصات  انتهای مسیر","عرض مازاد","طول مسیرعرض مازاد(m)","مختصات عرض مازاد","شماره عکس","معادل سازی متر طول",0,0]
[130,null,null,null,null,null,null,null,null,null,{"$f":"H532*G532/10","v":0},0,0]
[131,null,null,null,null,null,null,null,null,null,{"$f":"H533*G533/10","v":0},0,0]
[132,null,null,null,null,null,null,null,null,null,0,0,0]
[133,null,null,null,null,null,null,null,null,null,0,0,0]
[134,null,null,null,null,null,null,null,null,null,0,0,0]
[135,null,null,null,null,null,null,null,null,null,0,0,0]
[136,null,null,null,null,null,null,null,null,null,0,0,0]
[137,null,null,null,null,null,null,null,null,null,0,0,0]
[138,null,null,null,null,null,null,null,null,null,0,0,0]
[139,null,null,null,null,null,null,null,null,null,0,0,0]
[140,null,null,null,null,null,null,null,null,null,0,0,0]
[141,null,null,null,null,null,null,null,null,null,0,0,0]
[142,null,null,null,null,null,null,null,null,null,0,0,0]
[143,null,null,null,null,null,null,null,null,null,0,0,0]
[144,null,null,null,null,null,null,null,null,null,0,0,0]
[145,null,null,null,null,null,null,null,null,null,0,0,0]
[146,null,null,null,null,null,null,null,null,null,0,0,0]
[147,null,null,null,null,null,null,null,null,null,0,0,0]
[148,null,null,null,null,null,null,null,null,null,0,0,0]
[149,null,null,null,null,null,null,null,null,null,0,0,0]
[150,null,null,null,null,null,null,null,null,null,0,0,0]
[151,null,null,null,null,null,null,null,null,null,0,0,0]
[152,null,null,null,null,null,null,null,null,null,0,0,0]
[153,null,null,null,null,null,null,null,null,null,0,0,0]
[154,null,null,null,null,null,null,null,null,null,0,0,0]
[155,null,null,null,null,null,null,null,null,null,0,0,0]
[null,"جمع طولی",null,{"$f":"SUM(D532:D557)","v":0},"صفحه 6",null,null,null,"جمع مازاد",null,{"$f":"SUM(K532:K557)","v":0},0,0]
["ردیف","تاریخ","مسیر","طول مسیر","مختصات  ابتدای مسیر","مختصات  انتهای مسیر","عرض مازاد","طول مسیرعرض مازاد(m)","مختصات عرض مازاد","شماره عکس","معادل سازی متر طول",0,0]
[130,null,null,null,null,null,null,null,null,null,{"$f":"H560*G560/10","v":0},{"$f":"K560","v":0},0]
[131,null,null,null,null,null,null,null,null,null,{"$f":"H561*G561/10","v":0},0,0]
[132,null,null,null,null,null,null,null,null,null,0,0,0]
[133,null,null,null,null,null,null,null,null,null,0,0,0]
[134,null,null,null,null,null,null,null,null,null,0,0,0]
[135,null,null,null,null,null,null,null,null,null,0,0,0]
[136,null,null,null,null,null,null,null,null,null,0,0,0]
[137,null,null,null,null,null,null,null,null,null,0,0,0]
[138,null,null,null,null,null,null,null,null,null,0,0,0]
[139,null,null,null,null,null,null,null,null,null,0,0,0]
[140,null,null,null,null,null,null,null,null,null,0,0,0]
[141,null,null,null,null,null,null,null,null,null,0,0,0]
[142,null,null,null,null,null,null,null,null,null,0,0,0]
[143,null,null,null,null,null,null,null,null,null,0,0,0]
[144,null,null,null,null,null,null,null,null,null,0,0,0]
[145,null,null,null,null,null,null,null,null,null,0,0,0]
[146,null,null,null,null,null,null,null,null,null,0,0,0]
[147,null,null,null,null,null,null,null,null,null,0,0,0]
[148,null,null,null,null,null,null,null,null,null,0,0,0]
[149,null,null,null,null,null,null,null,null,null,0,0,{"$f":"D579","v":0}]
[150,null,null,null,null,null,null,null,null,null,0,0,0]
[151,null,null,null,null,null,null,null,null,null,0,0,0]
[152,null,null,null,null,null,null,null,null,null,0,0,0]
[153,null,null,null,null,null,null,null,null,null,0,0,0]
[154,null,null,null,null,null,null,null,null,null,0,0,0]
[155,null,null,null,null,null,null,null,null,null,0,0,0]
[null,"جمع طولی",null,{"$f":"SUM(D560:D585)","v":0},"صفحه 6",null,null,null,"جمع مازاد",null,{"$f":"SUM(K560:K585)","v":0},0,0]
["ردیف","تاریخ","مسیر","طول مسیر","مختصات  ابتدای مسیر","مختصات  انتهای مسیر","عرض مازاد","طول مسیرعرض مازاد(m)","مختصات عرض مازاد","شماره عکس","معادل سازی متر طول",0,0]
[130,null,null,null,null,null,null,null,null,null,{"$f":"H588*G588/10","v":0},0,0]
[131,null,null,null,null,null,null,null,null,null,{"$f":"H589*G589/10","v":0},0,0]
[132,null,null,null,null,null,null,null,null,null,0,0,0]
[133,null,null,null,null,null,null,null,null,null,0,0,0]
[134,null,null,null,null,null,null,null,null,null,0,0,0]
[135,null,null,null,null,null,null,null,null,null,0,0,0]
[136,null,null,null,null,null,null,null,null,null,0,0,0]
[137,null,null,null,null,null,null,null,null,null,0,0,0]
[138,null,null,null,null,null,null,null,null,null,0,0,0]
[139,null,null,null,null,null,null,null,null,null,0,0,0]
[140,null,null,null,null,null,null,null,null,null,0,0,0]
[141,null,null,null,null,null,null,null,null,null,0,0,0]
[142,null,null,null,null,null,null,null,null,null,0,0,0]
[143,null,null,null,null,null,null,null,null,null,0,0,0]
[144,null,null,null,null,null,null,null,null,null,0,0,0]
[145,null,null,null,null,null,null,null,null,null,0,0,0]
[146,null,null,null,null,null,null,null,null,null,0,0,0]
[147,null,null,null,null,null,null,null,null,null,0,0,0]
[148,null,null,null,null,null,null,null,null,null,0,0,0]
[149,null,null,null,null,null,null,null,null,null,0,0,0]
[150,null,null,null,null,null,null,null,null,null,0,0,0]
[151,null,null,null,null,null,null,null,null,null,0,0,0]
[152,null,null,null,null,null,null,null,null,null,0,0,0]
[153,null,null,null,null,null,null,null,null,null,0,0,0]
[154,null,null,null,null,null,null,null,null,null,0,0,0]
[155,null,null,null,null,null,null,null,null,null,0,0,0]
[null,"جمع طولی",null,{"$f":"SUM(D588:D613)","v":0},"صفحه 6",null,null,null,"جمع مازاد",null,{"$f":"SUM(K588:K613)","v":0},0,0]
[null,null,null,null,null,null,null,null,null,null,null,0,0]
[null,null,null,null,null,null,null,null,null,null,null,0,0]
[null,null,null,null,null,null,null,null,null,null,null,0,0]
[null,null,null,null,null,null,null,null,null,null,null,0,0]
[null,null,null,null,null,null,null,null,null,null,null,0,0]
[null,null,null,null,null,null,null,null,null,null,null,0,0]
[null,null,null,null,null,null,null,null,null,null,null,0,0]
[null,null,null,null,null,null,null,null,null,null,null,{"$f":"K622","v":0},0]
[null,null,null,null,null,null,null,null,null,null,null,0,0]
[null,null,null,null,null,null,null,null,null,null,null,0,0]
[null,null,null,null,null,null,null,null,null,null,null,0,0]
[null,null,null,null,null,null,null,null,null,null,null,0,0]
[null,null,null,null,null,null,null,null,null,null,null,0,0]
[null,null,null,null,null,null,null,null,null,null,null,0,0]
[null,null,null,null,null,null,null,null,null,null,null,0,0]
[null,null,null,null,null,null,null,null,null,null,null,0,0]
[null,null,null,null,null,null,null,null,null,null,null,0,0]
[null,null,null,null,null,null,null,null,null,null,null,0,0]
[null,null,null,null,null,null,null,null,null,null,null,0,0]
[null,null,null,null,null,null,null,null,null,null,null,0,0]
[null,null,null,null,null,null,null,null,null,null,null,0,0]
[null,null,null,null,null,null,null,null,null,null,null,0,0]
[null,null,null,null,null,null,null,null,null,null,null,0,0]
[null,null,null,null,null,null,null,null,null,null,null,0,0]
[null,null,null,null,null,null,null,null,null,null,null,0,0]
[null,null,null,null,null,null,null,null,null,null,null,0,0]
[null,null,null,null,null,null,null,null,null,null,null,0,0]
[null,null,null,null,null,null,null,null,null,null,null,0,0]
[null,null,null,null,null,null,null,null,null,null,null,0,{"$f":"D643","v":0}]
[null,null,null,null,null,null,null,null,null,null,null,0,0]
[null,null,null,null,null,null,null,null,null,null,null,0,0]
[null,null,null,null,null,null,null,null,null,null,null,0,0]
[null,null,null,null,null,null,null,null,null,null,null,0,0]
[null,null,null,null,null,null,null,null,null,null,null,0,0]
[null,null,null,null,null,null,null,null,null,null,null,0,0]
[null,null,null,null,null,null,null,null,null,null,null,0,0]
[null,null,null,null,null,null,null,null,null,null,null,0,0]
[null,null,null,null,null,null,null,null,null,null,null,0,0]
[null,null,null,null,null,null,null,null,null,null,null,0,0]
[null,null,null,null,null,null,null,null,null,null,null,0,0]
[null,null,null,null,null,null,null,null,null,null,null,0,0]
[null,null,null,null,null,null,null,null,null,null,null,0,0]
[null,null,null,null,null,null,null,null,null,null,null,0,0]
[null,null,null,null,null,null,null,null,null,null,null,0,0]
[null,null,null,null,null,null,null,null,null,null,null,0,0]
[null,null,null,null,null,null,null,null,null,null,null,0,0]
[null,null,null,null,null,null,null,null,null,null,null,0,0]
[null,null,null,null,null,null,null,null,null,null,null,0,0]
[null,null,null,null,null,null,null,null,null,null,null,0,0]
[null,null,null,null,null,null,null,null,null,null,null,0,0]
[null,null,null,null,null,null,null,null,null,null,null,0,0]
[null,null,null,null,null,null,null,null,null,null,null,0,0]
[null,null,null,null,null,null,null,null,null,null,null,0,0]
[null,null,null,null,null,null,null,null,null,null,null,0,0]
[null,null,null,null,null,null,null,null,null,null,null,0,0]
[null,null,null,null,null,null,null,null,null,null,null,0,0]
[null,null,null,null,null,null,null,null,null,null,null,0,0]
[null,null,null,null,null,null,null,null,null,null,null,0,0]
[null,null,null,null,null,null,null,null,null,null,null,0,0]
[null,null,null,null,null,null,null,null,null,null,null,0,0]
[null,null,null,null,null,null,null,null,null,null,null,0,0]
[null,null,null,null,null,null,null,null,null,null,null,0,0]
[null,null,null,null,null,null,null,null,null,null,null,0,0]
[null,null,null,null,null,null,null,null,null,null,null,0,0]
[null,null,null,null,null,null,null,null,null,null,null,0,0]
[null,null,null,null,null,null,null,null,null,null,null,0,0]
[null,null,null,null,null,null,null,null,null,null,null,0,0]
[null,null,null,null,null,null,null,null,null,null,null,0,0]
[null,null,null,null,null,null,null,null,null,null,null,0,0]
[null,null,null,null,null,null,null,null,null,null,null,0,0]
[null,null,null,null,null,null,null,null,null,null,null,0,0]
[null,null,null,null,null,null,null,null,null,null,null,{"$f":"K686","v":0},0]
[null,null,null,null,null,null,null,null,null,null,null,0,0]
[null,null,null,null,null,null,null,null,null,null,null,0,0]
[null,null,null,null,null,null,null,null,null,null,null,0,0]
[null,null,null,null,null,null,null,null,null,null,null,0,0]
[null,null,null,null,null,null,null,null,null,null,null,0,0]
[null,null,null,null,null,null,null,null,null,null,null,0,0]
[null,null,null,null,null,null,null,null,null,null,null,0,0]
[null,null,null,null,null,null,null,null,null,null,null,0,0]
[null,null,null,null,null,null,null,null,null,null,null,0,0]
[null,null,null,null,null,null,null,null,null,null,null,0,0]
[null,null,null,null,null,null,null,null,null,null,null,0,0]
[null,null,null,null,null,null,null,null,null,null,null,0,0]
[null,null,null,null,null,null,null,null,null,null,null,0,0]
[null,null,null,null,null,null,null,null,null,null,null,0,0]
[null,null,null,null,null,null,null,null,null,null,null,0,0]
[null,null,null,null,null,null,null,null,null,null,null,0,0]
[null,null,null,null,null,null,null,null,null,null,null,0,0]
[null,null,null,null,null,null,null,null,null,null,null,0,0]
[null,null,null,null,null,null,null,null,null,null,null,0,0]
[null,null,null,null,null,null,null,null,null,null,null,0,0]
[null,null,null,null,null,null,null,null,null,null,null,0,{"$f":"D707","v":0}]
[null,null,null,null,null,null,null,null,null,null,null,0,0]
[null,null,null,null,null,null,null,null,null,null,null,0,0]
[null,null,null,null,null,null,null,null,null,null,null,0,0]
[null,null,null,null,null,null,null,null,null,null,null,0,0]
[null,null,null,null,null,null,null,null,null,null,null,0,0]
[null,null,null,null,null,null,null,null,null,null,null,0,0]
[null,null,null,null,null,null,null,null,null,null,null,0,0]
[null,null,null,null,null,null,null,null,null,null,null,0,0]
[null,null,null,null,null,null,null,null,null,null,null,0,0]
[null,null,null,null,null,null,null,null,null,null,null,0,0]
[null,null,null,null,null,null,null,null,null,null,null,0,0]
[null,null,null,null,null,null,null,null,null,null,null,0,0]
[null,null,null,null,null,null,null,null,null,null,null,0,0]
[null,null,null,null,null,null,null,null,null,null,null,0,0]
[null,null,null,null,null,null,null,null,null,null,null,0,0]
[null,null,null,null,null,null,null,null,null,null,null,0,0]
[null,null,null,null,null,null,null,null,null,null,null,0,0]
[null,null,null,null,null,null,null,null,null,null,null,0,0]
[null,null,null,null,null,null,null,null,null,null,null,0,0]
[null,null,null,null,null,null,null,null,null,null,null,0,0]
[null,null,null,null,null,null,null,null,null,null,null,0,0]
[null,null,null,null,null,null,null,null,null,null,null,0,0]
[null,null,null,null,null,null,null,null,null,null,null,0,0]
[null,null,null,null,null,null,null,null,null,null,null,0,0]
[null,null,null,null,null,null,null,null,null,null,null,0,0]
[null,null,null,null,null,null,null,null,null,null,null,0,0]
[null,null,null,null,null,null,null,null,null,null,null,0,0]
[null,null,null,null,null,null,null,null,null,null,null,0,0]
[null,null,null,null,null,null,null,null,null,null,null,0,0]
[null,null,null,null,null,null,null,null,null,null,null,0,0]
[null,null,null,null,null,null,null,null,null,null,null,0,0]
[null,null,null,null,null,null,null,null,null,null,null,0,0]
[null,null,null,null,null,null,null,null,null,null,null,0,0]
[null,null,null,null,null,null,null,null,null,null,null,0,0]
[null,null,null,null,null,null,null,null,null,null,null,0,0]
[null,null,null,null,null,null,null,null,null,null,null,0,0]
[null,null,null,null,null,null,null,null,null,null,null,0,0]
[null,null,null,null,null,null,null,null,null,null,null,0,0]
[null,null,null,null,null,null,null,null,null,null,null,0,0]
[null,null,null,null,null,null,null,null,null,null,null,0,0]
[null,null,null,null,null,null,null,null,null,null,null,0,0]
[null,null,null,null,null,null,null,null,null,null,null,0,0]
[null,null,null,null,null,null,null,null,null,null,null,{"$f":"K750","v":0},0]
[null,null,null,null,null,null,null,null,null,null,null,0,0]
[null,null,null,null,null,null,null,null,null,null,null,0,0]
[null,null,null,null,null,null,null,null,null,null,null,0,0]
[null,null,null,null,null,null,null,null,null,null,null,0,0]
[null,null,null,null,null,null,null,null,null,null,null,0,0]
[null,null,null,null,null,null,null,null,null,null,null,0,0]
[null,null,null,null,null,null,null,null,null,null,null,0,0]
[null,null,null,null,null,null,null,null,null,null,null,0,0]
[null,null,null,null,null,null,null,null,null,null,null,0,0]
[null,null,null,null,null,null,null,null,null,null,null,0,0]
[null,null,null,null,null,null,null,null,null,null,null,0,0]
[null,null,null,null,null,null,null,null,null,null,null,0,0]
[null,null,null,null,null,null,null,null,null,null,null,0,0]
[null,null,null,null,null,null,null,null,null,null,null,0,0]
[null,null,null,null,null,null,null,null,null,null,null,0,0]
[null,null,null,null,null,null,null,null,null,null,null,0,0]
[null,null,null,null,null,null,null,null,null,null,null,0,0]
[null,null,null,null,null,null,null,null,null,null,null,0,0]
[null,null,null,null,null,null,null,null,null,null,null,0,0]
[null,null,null,null,null,null,null,null,null,null,null,0,0]
[null,null,null,null,null,null,null,null,null,null,null,0,{"$f":"D771","v":0}]
[null,null,null,null,null,null,null,null,null,null,null,0,0]
[null,null,null,null,null,null,null,null,null,null,null,0,0]
[null,null,null,null,null,null,null,null,null,null,null,0,0]
[null,null,null,null,null,null,null,null,null,null,null,0,0]
[null,null,null,null,null,null,null,null,null,null,null,0,0]
[null,null,null,null,null,null,null,null,null,null,null,0,0]
[null,null,null,null,null,null,null,null,null,null,null,0,0]
[null,null,null,null,null,null,null,null,null,null,null,0,0]
[null,null,null,null,null,null,null,null,null,null,null,0,0]
[null,null,null,null,null,null,null,null,null,null,null,0,0]
[null,null,null,null,null,null,null,null,null,null,null,0,0]
[null,null,null,null,null,null,null,null,null,null,null,0,0]
[null,null,null,null,null,null,null,null,null,null,null,0,0]
[null,null,null,null,null,null,null,null,null,null,null,0,0]
[null,null,null,null,null,null,null,null,null,null,null,0,0]
[null,null,null,null,null,null,null,null,null,null,null,0,0]
[null,null,null,null,null,null,null,null,null,null,null,0,0]
[null,null,null,null,null,null,null,null,null,null,null,0,0]
[null,null,null,null,null,null,null,null,null,null,null,0,0]
[null,null,null,null,null,null,null,null,null,null,null,0,0]
[null,null,null,null,null,null,null,null,null,null,null,0,0]
[null,null,null,null,null,null,null,null,null,null,null,0,0]
[null,null,null,null,null,null,null,null,null,null,null,0,0]
[null,null,null,null,null,null,null,null,null,null,null,0,0]
[null,null,null,null,null,null,null,null,null,null,null,0,0]
[null,null,null,null,null,null,null,null,null,null,null,0,0]
[null,null,null,null,null,null,null,null,null,null,null,0,0]
[null,null,null,null,null,null,null,null,null,null,null,0,0]
[null,null,null,null,null,null,null,null,null,null,null,0,0]
[null,null,null,null,null,null,null,null,null,null,null,0,0]
[null,null,null,null,null,null,null,null,null,null,null,0,0]
[null,null,null,null,null,null,null,null,null,null,null,0,0]
[null,null,null,null,null,null,null,null,null,null,null,0,0]
[null,null,null,null,null,null,null,null,null,null,null,0,0]
[null,null,null,null,null,null,null,null,null,null,null,0,0]
[null,null,null,null,null,null,null,null,null,null,null,0,0]
[null,null,null,null,null,null,null,null,null,null,null,0,0]
[null,null,null,null,null,null,null,null,null,null,null,0,0]
[null,null,null,null,null,null,null,null,null,null,null,0,0]
[null,null,null,null,null,null,null,null,null,null,null,0,0]
[null,null,null,null,null,null,null,null,null,null,null,0,0]
[null,null,null,null,null,null,null,null,null,null,null,0,0]
[null,null,null,null,null,null,null,null,null,null,null,{"$f":"K814","v":0},0]
[null,null,null,null,null,null,null,null,null,null,null,0,0]
[null,null,null,null,null,null,null,null,null,null,null,0,0]
[null,null,null,null,null,null,null,null,null,null,null,0,0]
[null,null,null,null,null,null,null,null,null,null,null,0,0]
[null,null,null,null,null,null,null,null,null,null,null,0,0]
[null,null,null,null,null,null,null,null,null,null,null,0,0]
[null,null,null,null,null,null,null,null,null,null,null,0,0]
[null,null,null,null,null,null,null,null,null,null,null,0,0]
[null,null,null,null,null,null,null,null,null,null,null,0,0]
[null,null,null,null,null,null,null,null,null,null,null,0,0]
[null,null,null,null,null,null,null,null,null,null,null,0,0]
[null,null,null,null,null,null,null,null,null,null,null,0,0]
[null,null,null,null,null,null,null,null,null,null,null,0,0]
[null,null,null,null,null,null,null,null,null,null,null,0,0]
[null,null,null,null,null,null,null,null,null,null,null,0,0]
[null,null,null,null,null,null,null,null,null,null,null,0,0]
[null,null,null,null,null,null,null,null,null,null,null,0,0]
[null,null,null,null,null,null,null,null,null,null,null,0,0]
[null,null,null,null,null,null,null,null,null,null,null,0,0]
[null,null,null,null,null,null,null,null,null,null,null,0,0]
[null,null,null,null,null,null,null,null,null,null,null,0,{"$f":"D835","v":0}]
[null,null,null,null,null,null,null,null,null,null,null,0,0]
[null,null,null,null,null,null,null,null,null,null,null,0,0]
[null,null,null,null,null,null,null,null,null,null,null,0,0]
[null,null,null,null,null,null,null,null,null,null,null,0,0]
[null,null,null,null,null,null,null,null,null,null,null,0,0]
[null,null,null,null,null,null,null,null,null,null,null,0,0]
[null,null,null,null,null,null,null,null,null,null,null,0,0]
[null,null,null,null,null,null,null,null,null,null,null,0,0]
[null,null,null,null,null,null,null,null,null,null,null,0,0]
[null,null,null,null,null,null,null,null,null,null,null,0,0]
[null,null,null,null,null,null,null,null,null,null,null,0,0]
[null,null,null,null,null,null,null,null,null,null,null,0,0]
[null,null,null,null,null,null,null,null,null,null,null,0,0]
[null,null,null,null,null,null,null,null,null,null,null,0,0]
[null,null,null,null,null,null,null,null,null,null,null,0,0]
[null,null,null,null,null,null,null,null,null,null,null,0,0]
[null,null,null,null,null,null,null,null,null,null,null,0,0]
[null,null,null,null,null,null,null,null,null,null,null,0,0]
[null,null,null,null,null,null,null,null,null,null,null,0,0]
[null,null,null,null,null,null,null,null,null,null,null,0,0]
[null,null,null,null,null,null,null,null,null,null,null,0,0]
[null,null,null,null,null,null,null,null,null,null,null,0,0]
[null,null,null,null,null,null,null,null,null,null,null,0,0]
[null,null,null,null,null,null,null,null,null,null,null,0,0]
[null,null,null,null,null,null,null,null,null,null,null,0,0]
[null,null,null,null,null,null,null,null,null,null,null,0,0]
[null,null,null,null,null,null,null,null,null,null,null,0,0]
[null,null,null,null,null,null,null,null,null,null,null,0,0]
[null,null,null,null,null,null,null,null,null,null,null,0,0]
[null,null,null,null,null,null,null,null,null,null,null,0,0]
[null,null,null,null,null,null,null,null,null,null,null,0,0]
[null,null,null,null,null,null,null,null,null,null,null,0,0]
[null,null,null,null,null,null,null,null,null,null,null,0,0]
[null,null,null,null,null,null,null,null,null,null,null,0,0]
[null,null,null,null,null,null,null,null,null,null,null,0,0]
[null,null,null,null,null,null,null,null,null,null,null,0,0]
[null,null,null,null,null,null,null,null,null,null,null,0,0]
[null,null,null,null,null,null,null,null,null,null,null,0,0]
[null,null,null,null,null,null,null,null,null,null,null,0,0]
[null,null,null,null,null,null,null,null,null,null,null,0,0]
[null,null,null,null,null,null,null,null,null,null,null,0,0]
[null,null,null,null,null,null,null,null,null,null,null,0,0]
[null,null,null,null,null,null,null,null,null,null,null,{"$f":"K878","v":0},0]
[null,null,null,null,null,null,null,null,null,null,null,0,0]
[null,null,null,null,null,null,null,null,null,null,null,0,0]
[null,null,null,null,null,null,null,null,null,null,null,0,0]
[null,null,null,null,null,null,null,null,null,null,null,0,0]
[null,null,null,null,null,null,null,null,null,null,null,0,0]
[null,null,null,null,null,null,null,null,null,null,null,0,0]
[null,null,null,null,null,null,null,null,null,null,null,0,0]
[null,null,null,null,null,null,null,null,null,null,null,0,0]
[null,null,null,null,null,null,null,null,null,null,null,0,0]
[null,null,null,null,null,null,null,null,null,null,null,0,0]
[null,null,null,null,null,null,null,null,null,null,null,0,0]
[null,null,null,null,null,null,null,null,null,null,null,0,0]
[null,null,null,null,null,null,null,null,null,null,null,0,0]
[null,null,null,null,null,null,null,null,null,null,null,0,0]
[null,null,null,null,null,null,null,null,null,null,null,0,0]
[null,null,null,null,null,null,null,null,null,null,null,0,0]
[null,null,null,null,null,null,null,null,null,null,null,0,0]
[null,null,null,null,null,null,null,null,null,null,null,0,0]
[null,null,null,null,null,null,null,null,null,null,null,0,0]
[null,null,null,null,null,null,null,null,null,null,null,0,0]
[null,null,null,null,null,null,null,null,null,null,null,0,{"$f":"D899","v":0}]
[null,null,null,null,null,null,null,null,null,null,null,0,0]
[null,null,null,null,null,null,null,null,null,null,null,0,0]
[null,null,null,null,null,null,null,null,null,null,null,0,0]
[null,null,null,null,null,null,null,null,null,null,null,0,0]
[null,null,null,null,null,null,null,null,null,null,null,0,0]
[null,null,null,null,null,null,null,null,null,null,null,0,0]
[null,null,null,null,null,null,null,null,null,null,null,0,0]
[null,null,null,null,null,null,null,null,null,null,null,0,0]
[null,null,null,null,null,null,null,null,null,null,null,0,0]
[null,null,null,null,null,null,null,null,null,null,null,0,0]
[null,null,null,null,null,null,null,null,null,null,null,0,0]
[null,null,null,null,null,null,null,null,null,null,null,0,0]
[null,null,null,null,null,null,null,null,null,null,null,0,0]
[null,null,null,null,null,null,null,null,null,null,null,0,0]
[null,null,null,null,null,null,null,null,null,null,null,0,0]
[null,null,null,null,null,null,null,null,null,null,null,0,0]
[null,null,null,null,null,null,null,null,null,null,null,0,0]
[null,null,null,null,null,null,null,null,null,null,null,0,0]
[null,null,null,null,null,null,null,null,null,null,null,0,0]
[null,null,null,null,null,null,null,null,null,null,null,0,0]
[null,null,null,null,null,null,null,null,null,null,null,0,0]
[null,null,null,null,null,null,null,null,null,null,null,0,0]
[null,null,null,null,null,null,null,null,null,null,null,0,0]
[null,null,null,null,null,null,null,null,null,null,null,0,0]
[null,null,null,null,null,null,null,null,null,null,null,0,0]
[null,null,null,null,null,null,null,null,null,null,null,0,0]
[null,null,null,null,null,null,null,null,null,null,null,0,0]
[null,null,null,null,null,null,null,null,null,null,null,0,0]
[null,null,null,null,null,null,null,null,null,null,null,0,0]
[null,null,null,null,null,null,null,null,null,null,null,0,0]
[null,null,null,null,null,null,null,null,null,null,null,0,0]
[null,null,null,null,null,null,null,null,null,null,null,0,0]
[null,null,null,null,null,null,null,null,null,null,null,0,0]
[null,null,null,null,null,null,null,null,null,null,null,0,0]
[null,null,null,null,null,null,null,null,null,null,null,0,0]
[null,null,null,null,null,null,null,null,null,null,null,0,0]
[null,null,null,null,null,null,null,null,null,null,null,0,0]
[null,null,null,null,null,null,null,null,null,null,null,0,0]
[null,null,null,null,null,null,null,null,null,null,null,0,0]
[null,null,null,null,null,null,null,null,null,null,null,0,0]
[null,null,null,null,null,null,null,null,null,null,null,0,0]
[null,null,null,null,null,null,null,null,null,null,null,0,0]
[null,null,null,null,null,null,null,null,null,null,null,{"$f":"K942","v":0},0]
[null,null,null,null,null,null,null,null,null,null,null,0,0]
[null,null,null,null,null,null,null,null,null,null,null,0,0]
[null,null,null,null,null,null,null,null,null,null,null,0,0]
[null,null,null,null,null,null,null,null,null,null,null,0,0]
[null,null,null,null,null,null,null,null,null,null,null,0,0]
[null,null,null,null,null,null,null,null,null,null,null,0,0]
[null,null,null,null,null,null,null,null,null,null,null,0,0]
[null,null,null,null,null,null,null,null,null,null,null,0,0]
[null,null,null,null,null,null,null,null,null,null,null,0,0]
[null,null,null,null,null,null,null,null,null,null,null,0,0]
[null,null,null,null,null,null,null,null,null,null,null,0,0]
[null,null,null,null,null,null,null,null,null,null,null,0,0]
[null,null,null,null,null,null,null,null,null,null,null,0,0]
[null,null,null,null,null,null,null,null,null,null,null,0,0]
[null,null,null,null,null,null,null,null,null,null,null,0,0]
[null,null,null,null,null,null,null,null,null,null,null,0,0]
[null,null,null,null,null,null,null,null,null,null,null,0,0]
[null,null,null,null,null,null,null,null,null,null,null,0,0]
[null,null,null,null,null,null,null,null,null,null,null,0,0]
[null,null,null,null,null,null,null,null,null,null,null,0,0]
[null,null,null,null,null,null,null,null,null,null,null,0,{"$f":"D963","v":0}]
[null,null,null,null,null,null,null,null,null,null,null,0,0]
[null,null,null,null,null,null,null,null,null,null,null,0,0]
[null,null,null,null,null,null,null,null,null,null,null,0,0]
[null,null,null,null,null,null,null,null,null,null,null,0,0]
[null,null,null,null,null,null,null,null,null,null,null,0,0]
[null,null,null,null,null,null,null,null,null,null,null,0,0]
[null,null,null,null,null,null,null,null,null,null,null,0,0]
[null,null,null,null,null,null,null,null,null,null,null,0,0]
[null,null,null,null,null,null,null,null,null,null,null,0,0]
[null,null,null,null,null,null,null,null,null,null,null,0,0]
[null,null,null,null,null,null,null,null,null,null,null,0,0]
[null,null,null,null,null,null,null,null,null,null,null,0,0]
[null,null,null,null,null,null,null,null,null,null,null,0,0]
[null,null,null,null,null,null,null,null,null,null,null,0,0]
[null,null,null,null,null,null,null,null,null,null,null,0,0]
[null,null,null,null,null,null,null,null,null,null,null,0,0]
[null,null,null,null,null,null,null,null,null,null,null,0,0]
[null,null,null,null,null,null,null,null,null,null,null,0,0]
[null,null,null,null,null,null,null,null,null,null,null,0,0]
[null,null,null,null,null,null,null,null,null,null,null,0,0]
[null,null,null,null,null,null,null,null,null,null,null,0,0]
[null,null,null,null,null,null,null,null,null,null,null,0,0]
[null,null,null,null,null,null,null,null,null,null,null,0,0]
[null,null,null,null,null,null,null,null,null,null,null,0,0]
[null,null,null,null,null,null,null,null,null,null,null,0,0]
[null,null,null,null,null,null,null,null,null,null,null,0,0]
[null,null,null,null,null,null,null,null,null,null,null,0,0]
[null,null,null,null,null,null,null,null,null,null,null,0,0]
[null,null,null,null,null,null,null,null,null,null,null,0,0]
[null,null,null,null,null,null,null,null,null,null,null,0,0]
[null,null,null,null,null,null,null,null,null,null,null,0,0]
[null,null,null,null,null,null,null,null,null,null,null,0,0]
[null,null,null,null,null,null,null,null,null,null,null,0,0]
[null,null,null,null,null,null,null,null,null,null,null,0,0]
[null,null,null,null,null,null,null,null,null,null,null,0,0]
[null,null,null,null,null,null,null,null,null,null,null,0,0]
[null,null,null,null,null,null,null,null,null,null,null,0,0]
[null,null,null,null,null,null,null,null,null,null,null,0,0]
[null,null,null,null,null,null,null,null,null,null,null,0,0]
[null,null,null,null,null,null,null,null,null,null,null,0,0]
[null,null,null,null,null,null,null,null,null,null,null,0,0]
[null,null,null,null,null,null,null,null,null,null,null,0,0]
[null,null,null,null,null,null,null,null,null,null,null,{"$f":"K1006","v":0},0]
[null,null,null,null,null,null,null,null,null,null,null,0,0]
[null,null,null,null,null,null,null,null,null,null,null,0,0]
[null,null,null,null,null,null,null,null,null,null,null,0,0]
[null,null,null,null,null,null,null,null,null,null,null,0,0]
[null,null,null,null,null,null,null,null,null,null,null,0,0]
[null,null,null,null,null,null,null,null,null,null,null,0,0]
[null,null,null,null,null,null,null,null,null,null,null,0,0]
[null,null,null,null,null,null,null,null,null,null,null,0,0]
[null,null,null,null,null,null,null,null,null,null,null,0,0]
[null,null,null,null,null,null,null,null,null,null,null,0,0]
[null,null,null,null,null,null,null,null,null,null,null,0,0]
[null,null,null,null,null,null,null,null,null,null,null,0,0]
[null,null,null,null,null,null,null,null,null,null,null,0,0]
[null,null,null,null,null,null,null,null,null,null,null,0,0]
[null,null,null,null,null,null,null,null,null,null,null,0,0]
[null,null,null,null,null,null,null,null,null,null,null,0,0]
[null,null,null,null,null,null,null,null,null,null,null,0,0]
[null,null,null,null,null,null,null,null,null,null,null,0,0]
[null,null,null,null,null,null,null,null,null,null,null,0,0]
[null,null,null,null,null,null,null,null,null,null,null,0,0]
[null,null,null,null,null,null,null,null,null,null,null,0,{"$f":"D1027","v":0}]
[null,null,null,null,null,null,null,null,null,null,null,0,0]
[null,null,null,null,null,null,null,null,null,null,null,0,0]
[null,null,null,null,null,null,null,null,null,null,null,0,0]
[null,null,null,null,null,null,null,null,null,null,null,0,0]
[null,null,null,null,null,null,null,null,null,null,null,0,0]
[null,null,null,null,null,null,null,null,null,null,null,0,0]
[null,null,null,null,null,null,null,null,null,null,null,0,0]
[null,null,null,null,null,null,null,null,null,null,null,0,0]
[null,null,null,null,null,null,null,null,null,null,null,0,0]
[null,null,null,null,null,null,null,null,null,null,null,0,0]
[null,null,null,null,null,null,null,null,null,null,null,0,0]
[null,null,null,null,null,null,null,null,null,null,null,0,0]
[null,null,null,null,null,null,null,null,null,null,null,0,0]
[null,null,null,null,null,null,null,null,null,null,null,0,0]
[null,null,null,null,null,null,null,null,null,null,null,0,0]
[null,null,null,null,null,null,null,null,null,null,null,0,0]
[null,null,null,null,null,null,null,null,null,null,null,0,0]
[null,null,null,null,null,null,null,null,null,null,null,0,0]
[null,null,null,null,null,null,null,null,null,null,null,0,0]
[null,null,null,null,null,null,null,null,null,null,null,0,0]
[null,null,null,null,null,null,null,null,null,null,null,0,0]
[null,null,null,null,null,null,null,null,null,null,null,0,0]
[null,null,null,null,null,null,null,null,null,null,null,0,0]
[null,null,null,null,null,null,null,null,null,null,null,0,0]
[null,null,null,null,null,null,null,null,null,null,null,0,0]
[null,null,null,null,null,null,null,null,null,null,null,0,0]
[null,null,null,null,null,null,null,null,null,null,null,0,0]
[null,null,null,null,null,null,null,null,null,null,null,0,0]
[null,null,null,null,null,null,null,null,null,null,null,0,0]
[null,null,null,null,null,null,null,null,null,null,null,0,0]
[null,null,null,null,null,null,null,null,null,null,null,0,0]
[null,null,null,null,null,null,null,null,null,null,null,0,0]
[null,null,null,null,null,null,null,null,null,null,null,0,0]
[null,null,null,null,null,null,null,null,null,null,null,0,0]
[null,null,null,null,null,null,null,null,null,null,null,0,0]
[null,null,null,null,null,null,null,null,null,null,null,0,0]
[null,null,null,null,null,null,null,null,null,null,null,0,0]
[null,null,null,null,null,null,null,null,null,null,null,0,0]
[null,null,null,null,null,null,null,null,null,null,null,0,0]
[null,null,null,null,null,null,null,null,null,null,null,0,0]
[null,null,null,null,null,null,null,null,null,null,null,0,0]
[null,null,null,null,null,null,null,null,null,null,null,0,0]
[null,null,null,null,null,null,null,null,null,null,null,{"$f":"K1070","v":0},0]
[null,null,null,null,null,null,null,null,null,null,null,0,0]
[null,null,null,null,null,null,null,null,null,null,null,0,0]
[null,null,null,null,null,null,null,null,null,null,null,0,0]
[null,null,null,null,null,null,null,null,null,null,null,0,0]
[null,null,null,null,null,null,null,null,null,null,null,0,0]
[null,null,null,null,null,null,null,null,null,null,null,0,0]
[null,null,null,null,null,null,null,null,null,null,null,0,0]
[null,null,null,null,null,null,null,null,null,null,null,0,0]
[null,null,null,null,null,null,null,null,null,null,null,0,0]
[null,null,null,null,null,null,null,null,null,null,null,0,0]
[null,null,null,null,null,null,null,null,null,null,null,0,0]
[null,null,null,null,null,null,null,null,null,null,null,0,0]
[null,null,null,null,null,null,null,null,null,null,null,0,0]
[null,null,null,null,null,null,null,null,null,null,null,0,0]
[null,null,null,null,null,null,null,null,null,null,null,0,0]
[null,null,null,null,null,null,null,null,null,null,null,0,0]
[null,null,null,null,null,null,null,null,null,null,null,0,0]
[null,null,null,null,null,null,null,null,null,null,null,0,0]
[null,null,null,null,null,null,null,null,null,null,null,0,0]
[null,null,null,null,null,null,null,null,null,null,null,0,0]
[null,null,null,null,null,null,null,null,null,null,null,0,{"$f":"D1091","v":0}]
[null,null,null,null,null,null,null,null,null,null,null,0,0]
[null,null,null,null,null,null,null,null,null,null,null,0,0]
[null,null,null,null,null,null,null,null,null,null,null,0,0]
[null,null,null,null,null,null,null,null,null,null,null,0,0]
[null,null,null,null,null,null,null,null,null,null,null,0,0]
[null,null,null,null,null,null,null,null,null,null,null,0,0]
[null,null,null,null,null,null,null,null,null,null,null,0,0]
[null,null,null,null,null,null,null,null,null,null,null,0,0]
[null,null,null,null,null,null,null,null,null,null,null,0,0]
[null,null,null,null,null,null,null,null,null,null,null,0,0]
[null,null,null,null,null,null,null,null,null,null,null,0,0]
[null,null,null,null,null,null,null,null,null,null,null,0,0]
[null,null,null,null,null,null,null,null,null,null,null,0,0]
[null,null,null,null,null,null,null,null,null,null,null,0,0]
[null,null,null,null,null,null,null,null,null,null,null,0,0]
[null,null,null,null,null,null,null,null,null,null,null,0,0]
[null,null,null,null,null,null,null,null,null,null,null,0,0]
[null,null,null,null,null,null,null,null,null,null,null,0,0]
[null,null,null,null,null,null,null,null,null,null,null,0,0]
[null,null,null,null,null,null,null,null,null,null,null,0,0]
[null,null,null,null,null,null,null,null,null,null,null,0,0]
[null,null,null,null,null,null,null,null,null,null,null,0,0]
[null,null,null,null,null,null,null,null,null,null,null,0,0]
[null,null,null,null,null,null,null,null,null,null,null,0,0]
[null,null,null,null,null,null,null,null,null,null,null,0,0]
[null,null,null,null,null,null,null,null,null,null,null,0,0]
[null,null,null,null,null,null,null,null,null,null,null,0,0]
[null,null,null,null,null,null,null,null,null,null,null,0,0]
[null,null,null,null,null,null,null,null,null,null,null,0,0]
[null,null,null,null,null,null,null,null,null,null,null,0,0]
[null,null,null,null,null,null,null,null,null,null,null,0,0]
[null,null,null,null,null,null,null,null,null,null,null,0,0]
[null,null,null,null,null,null,null,null,null,null,null,0,0]
[null,null,null,null,null,null,null,null,null,null,null,0,0]
[null,null,null,null,null,null,null,null,null,null,null,0,0]
[null,null,null,null,null,null,null,null,null,null,null,0,0]
[null,null,null,null,null,null,null,null,null,null,null,0,0]
[null,null,null,null,null,null,null,null,null,null,null,0,0]
[null,null,null,null,null,null,null,null,null,null,null,0,0]
[null,null,null,null,null,null,null,null,null,null,null,0,0]
[null,null,null,null,null,null,null,null,null,null,null,0,0]
[null,null,null,null,null,null,null,null,null,null,null,0,0]
[null,null,null,null,null,null,null,null,null,null,null,{"$f":"K1134","v":0},0]
[null,null,null,null,null,null,null,null,null,null,null,0,0]
[null,null,null,null,null,null,null,null,null,null,null,0,0]
[null,null,null,null,null,null,null,null,null,null,null,0,0]
[null,null,null,null,null,null,null,null,null,null,null,0,0]
[null,null,null,null,null,null,null,null,null,null,null,0,0]
[null,null,null,null,null,null,null,null,null,null,null,0,0]
[null,null,null,null,null,null,null,null,null,null,null,0,0]
[null,null,null,null,null,null,null,null,null,null,null,0,0]
[null,null,null,null,null,null,null,null,null,null,null,0,0]
[null,null,null,null,null,null,null,null,null,null,null,0,0]
[null,null,null,null,null,null,null,null,null,null,null,0,0]
[null,null,null,null,null,null,null,null,null,null,null,0,0]
[null,null,null,null,null,null,null,null,null,null,null,0,0]
[null,null,null,null,null,null,null,null,null,null,null,0,0]
[null,null,null,null,null,null,null,null,null,null,null,0,0]
[null,null,null,null,null,null,null,null,null,null,null,0,0]
[null,null,null,null,null,null,null,null,null,null,null,0,0]
[null,null,null,null,null,null,null,null,null,null,null,0,0]
[null,null,null,null,null,null,null,null,null,null,null,0,0]
[null,null,null,null,null,null,null,null,null,null,null,0,0]
[null,null,null,null,null,null,null,null,null,null,null,0,{"$f":"D1155","v":0}]
[null,null,null,null,null,null,null,null,null,null,null,0,0]
[null,null,null,null,null,null,null,null,null,null,null,0,0]
[null,null,null,null,null,null,null,null,null,null,null,0,0]
[null,null,null,null,null,null,null,null,null,null,null,0,0]
[null,null,null,null,null,null,null,null,null,null,null,0,0]
[null,null,null,null,null,null,null,null,null,null,null,0,0]
[null,null,null,null,null,null,null,null,null,null,null,0,0]
[null,null,null,null,null,null,null,null,null,null,null,0,0]
[null,null,null,null,null,null,null,null,null,null,null,0,0]
[null,null,null,null,null,null,null,null,null,null,null,0,0]
[null,null,null,null,null,null,null,null,null,null,null,0,0]
[null,null,null,null,null,null,null,null,null,null,null,0,0]
[null,null,null,null,null,null,null,null,null,null,null,0,0]
[null,null,null,null,null,null,null,null,null,null,null,0,0]
[null,null,null,null,null,null,null,null,null,null,null,0,0]
[null,null,null,null,null,null,null,null,null,null,null,0,0]
[null,null,null,null,null,null,null,null,null,null,null,0,0]
[null,null,null,null,null,null,null,null,null,null,null,0,0]
[null,null,null,null,null,null,null,null,null,null,null,0,0]
[null,null,null,null,null,null,null,null,null,null,null,0,0]
[null,null,null,null,null,null,null,null,null,null,null,0,0]
[null,null,null,null,null,null,null,null,null,null,null,0,0]
[null,null,null,null,null,null,null,null,null,null,null,0,0]
[null,null,null,null,null,null,null,null,null,null,null,0,0]
[null,null,null,null,null,null,null,null,null,null,null,0,0]
[null,null,null,null,null,null,null,null,null,null,null,0,0]
[null,null,null,null,null,null,null,null,null,null,null,0,0]
[null,null,null,null,null,null,null,null,null,null,null,0,0]
[null,null,null,null,null,null,null,null,null,null,null,0,0]
[null,null,null,null,null,null,null,null,null,null,null,0,0]
[null,null,null,null,null,null,null,null,null,null,null,0,0]
[null,null,null,null,null,null,null,null,null,null,null,0,0]
[null,null,null,null,null,null,null,null,null,null,null,0,0]
[null,null,null,null,null,null,null,null,null,null,null,0,0]
[null,null,null,null,null,null,null,null,null,null,null,0,0]
[null,null,null,null,null,null,null,null,null,null,null,0,0]
[null,null,null,null,null,null,null,null,null,null,null,0,0]
[null,null,null,null,null,null,null,null,null,null,null,0,0]
[null,null,null,null,null,null,null,null,null,null,null,0,0]
[null,null,null,null,null,null,null,null,null,null,null,0,0]
[null,null,null,null,null,null,null,null,null,null,null,0,0]
[null,null,null,null,null,null,null,null,null,null,null,0,0]
[null,null,null,null,null,null,null,null,null,null,null,{"$f":"K1198","v":0},0]
[null,null,null,null,null,null,null,null,null,null,null,0,0]
[null,null,null,null,null,null,null,null,null,null,null,0,0]
[null,null,null,null,null,null,null,null,null,null,null,0,0]
[null,null,null,null,null,null,null,null,null,null,null,0,0]
[null,null,null,null,null,null,null,null,null,null,null,0,0]
[null,null,null,null,null,null,null,null,null,null,null,0,0]
[null,null,null,null,null,null,null,null,null,null,null,0,0]
[null,null,null,null,null,null,null,null,null,null,null,0,0]
[null,null,null,null,null,null,null,null,null,null,null,0,0]
[null,null,null,null,null,null,null,null,null,null,null,0,0]
[null,null,null,null,null,null,null,null,null,null,null,0,0]
[null,null,null,null,null,null,null,null,null,null,null,0,0]
[null,null,null,null,null,null,null,null,null,null,null,0,0]
[null,null,null,null,null,null,null,null,null,null,null,0,0]
[null,null,null,null,null,null,null,null,null,null,null,0,0]
[null,null,null,null,null,null,null,null,null,null,null,0,0]
[null,null,null,null,null,null,null,null,null,null,null,0,0]
[null,null,null,null,null,null,null,null,null,null,null,0,0]
[null,null,null,null,null,null,null,null,null,null,null,0,0]
[null,null,null,null,null,null,null,null,null,null,null,0,0]
[null,null,null,null,null,null,null,null,null,null,null,0,{"$f":"D1219","v":0}]
[null,null,null,null,null,null,null,null,null,null,null,0,0]
[null,null,null,null,null,null,null,null,null,null,null,0,0]
[null,null,null,null,null,null,null,null,null,null,null,0,0]
[null,null,null,null,null,null,null,null,null,null,null,0,0]
[null,null,null,null,null,null,null,null,null,null,null,0,0]
[null,null,null,null,null,null,null,null,null,null,null,0,0]
[null,null,null,null,null,null,null,null,null,null,null,0,0]
[null,null,null,null,null,null,null,null,null,null,null,0,0]
[null,null,null,null,null,null,null,null,null,null,null,0,0]
[null,null,null,null,null,null,null,null,null,null,null,0,0]
[null,null,null,null,null,null,null,null,null,null,null,0,0]
[null,null,null,null,null,null,null,null,null,null,null,0,0]
[null,null,null,null,null,null,null,null,null,null,null,0,0]
[null,null,null,null,null,null,null,null,null,null,null,0,0]
[null,null,null,null,null,null,null,null,null,null,null,0,0]
[null,null,null,null,null,null,null,null,null,null,null,0,0]
[null,null,null,null,null,null,null,null,null,null,null,0,0]
[null,null,null,null,null,null,null,null,null,null,null,0,0]
[null,null,null,null,null,null,null,null,null,null,null,0,0]
[null,null,null,null,null,null,null,null,null,null,null,0,0]
[null,null,null,null,null,null,null,null,null,null,null,0,0]
[null,null,null,null,null,null,null,null,null,null,null,0,0]
[null,null,null,null,null,null,null,null,null,null,null,0,0]
[null,null,null,null,null,null,null,null,null,null,null,0,0]
[null,null,null,null,null,null,null,null,null,null,null,0,0]
[null,null,null,null,null,null,null,null,null,null,null,0,0]
[null,null,null,null,null,null,null,null,null,null,null,0,0]
[null,null,null,null,null,null,null,null,null,null,null,0,0]
[null,null,null,null,null,null,null,null,null,null,null,0,0]
[null,null,null,null,null,null,null,null,null,null,null,0,0]
[null,null,null,null,null,null,null,null,null,null,null,0,0]
[null,null,null,null,null,null,null,null,null,null,null,0,0]
[null,null,null,null,null,null,null,null,null,null,null,0,0]
[null,null,null,null,null,null,null,null,null,null,null,0,0]
[null,null,null,null,null,null,null,null,null,null,null,0,0]
[null,null,null,null,null,null,null,null,null,null,null,0,0]
[null,null,null,null,null,null,null,null,null,null,null,0,0]
[null,null,null,null,null,null,null,null,null,null,null,0,0]
[null,null,null,null,null,null,null,null,null,null,null,0,0]
[null,null,null,null,null,null,null,null,null,null,null,0,0]
[null,null,null,null,null,null,null,null,null,null,null,0,0]
[null,null,null,null,null,null,null,null,null,null,null,0,0]
[null,null,null,null,null,null,null,null,null,null,null,{"$f":"K1262","v":0},0]
[null,null,null,null,null,null,null,null,null,null,null,0,0]
[null,null,null,null,null,null,null,null,null,null,null,0,0]
[null,null,null,null,null,null,null,null,null,null,null,0,0]
[null,null,null,null,null,null,null,null,null,null,null,0,0]
[null,null,null,null,null,null,null,null,null,null,null,0,0]
[null,null,null,null,null,null,null,null,null,null,null,0,0]
[null,null,null,null,null,null,null,null,null,null,null,0,0]
[null,null,null,null,null,null,null,null,null,null,null,0,0]
[null,null,null,null,null,null,null,null,null,null,null,0,0]
[null,null,null,null,null,null,null,null,null,null,null,0,0]
[null,null,null,null,null,null,null,null,null,null,null,0,0]
[null,null,null,null,null,null,null,null,null,null,null,0,0]
[null,null,null,null,null,null,null,null,null,null,null,0,0]
[null,null,null,null,null,null,null,null,null,null,null,0,0]
[null,null,null,null,null,null,null,null,null,null,null,0,0]
[null,null,null,null,null,null,null,null,null,null,null,0,0]
[null,null,null,null,null,null,null,null,null,null,null,0,0]
[null,null,null,null,null,null,null,null,null,null,null,0,0]
[null,null,null,null,null,null,null,null,null,null,null,0,0]
[null,null,null,null,null,null,null,null,null,null,null,0,0]
[null,null,null,null,null,null,null,null,null,null,null,0,{"$f":"D1283","v":0}]
[null,null,null,null,null,null,null,null,null,null,null,0,0]
[null,null,null,null,null,null,null,null,null,null,null,0,0]
[null,null,null,null,null,null,null,null,null,null,null,0,0]
[null,null,null,null,null,null,null,null,null,null,null,0,0]
[null,null,null,null,null,null,null,null,null,null,null,0,0]
[null,null,null,null,null,null,null,null,null,null,null,0,0]
[null,null,null,null,null,null,null,null,null,null,null,0,0]
[null,null,null,null,null,null,null,null,null,null,null,0,0]
[null,null,null,null,null,null,null,null,null,null,null,0,0]
[null,null,null,null,null,null,null,null,null,null,null,0,0]
[null,null,null,null,null,null,null,null,null,null,null,0,0]
[null,null,null,null,null,null,null,null,null,null,null,0,0]
[null,null,null,null,null,null,null,null,null,null,null,0,0]
[null,null,null,null,null,null,null,null,null,null,null,0,0]
[null,null,null,null,null,null,null,null,null,null,null,0,0]
[null,null,null,null,null,null,null,null,null,null,null,0,0]
[null,null,null,null,null,null,null,null,null,null,null,0,0]
[null,null,null,null,null,null,null,null,null,null,null,0,0]
[null,null,null,null,null,null,null,null,null,null,null,0,0]
[null,null,null,null,null,null,null,null,null,null,null,0,0]
[null,null,null,null,null,null,null,null,null,null,null,0,0]
[null,null,null,null,null,null,null,null,null,null,null,0,0]
[null,null,null,null,null,null,null,null,null,null,null,0,0]
[null,null,null,null,null,null,null,null,null,null,null,0,0]
[null,null,null,null,null,null,null,null,null,null,null,0,0]
[null,null,null,null,null,null,null,null,null,null,null,0,0]
[null,null,null,null,null,null,null,null,null,null,null,0,0]
[null,null,null,null,null,null,null,null,null,null,null,0,0]
[null,null,null,null,null,null,null,null,null,null,null,0,0]
[null,null,null,null,null,null,null,null,null,null,null,0,0]
[null,null,null,null,null,null,null,null,null,null,null,0,0]
[null,null,null,null,null,null,null,null,null,null,null,0,0]
[null,null,null,null,null,null,null,null,null,null,null,0,0]
[null,null,null,null,null,null,null,null,null,null,null,0,0]
[null,null,null,null,null,null,null,null,null,null,null,0,0]
[null,null,null,null,null,null,null,null,null,null,null,0,0]
[null,null,null,null,null,null,null,null,null,null,null,0,0]
[null,null,null,null,null,null,null,null,null,null,null,0,0]
[null,null,null,null,null,null,null,null,null,null,null,0,0]
[null,null,null,null,null,null,null,null,null,null,null,0,0]
[null,null,null,null,null,null,null,null,null,null,null,0,0]
[null,null,null,null,null,null,null,null,null,null,null,0,0]
[null,null,null,null,null,null,null,null,null,null,null,{"$f":"K1326","v":0},0]
[null,null,null,null,null,null,null,null,null,null,null,0,0]
[null,null,null,null,null,null,null,null,null,null,null,0,0]
[null,null,null,null,null,null,null,null,null,null,null,0,0]
[null,null,null,null,null,null,null,null,null,null,null,0,0]
[null,null,null,null,null,null,null,null,null,null,null,0,0]
[null,null,null,null,null,null,null,null,null,null,null,0,0]
[null,null,null,null,null,null,null,null,null,null,null,0,0]
[null,null,null,null,null,null,null,null,null,null,null,0,0]
[null,null,null,null,null,null,null,null,null,null,null,0,0]
[null,null,null,null,null,null,null,null,null,null,null,0,0]
[null,null,null,null,null,null,null,null,null,null,null,0,0]
[null,null,null,null,null,null,null,null,null,null,null,0,0]
[null,null,null,null,null,null,null,null,null,null,null,0,0]
[null,null,null,null,null,null,null,null,null,null,null,0,0]
[null,null,null,null,null,null,null,null,null,null,null,0,0]
[null,null,null,null,null,null,null,null,null,null,null,0,0]
[null,null,null,null,null,null,null,null,null,null,null,0,0]
[null,null,null,null,null,null,null,null,null,null,null,0,0]
[null,null,null,null,null,null,null,null,null,null,null,0,0]
[null,null,null,null,null,null,null,null,null,null,null,0,0]
[null,null,null,null,null,null,null,null,null,null,null,0,{"$f":"D1347","v":0}]
[null,null,null,null,null,null,null,null,null,null,null,0,0]
[null,null,null,null,null,null,null,null,null,null,null,0,0]
[null,null,null,null,null,null,null,null,null,null,null,0,0]
[null,null,null,null,null,null,null,null,null,null,null,0,0]
[null,null,null,null,null,null,null,null,null,null,null,0,0]
[null,null,null,null,null,null,null,null,null,null,null,0,0]
[null,null,null,null,null,null,null,null,null,null,null,0,0]
[null,null,null,null,null,null,null,null,null,null,null,0,0]
[null,null,null,null,null,null,null,null,null,null,null,0,0]
[null,null,null,null,null,null,null,null,null,null,null,0,0]
[null,null,null,null,null,null,null,null,null,null,null,0,0]
[null,null,null,null,null,null,null,null,null,null,null,0,0]
[null,null,null,null,null,null,null,null,null,null,null,0,0]
[null,null,null,null,null,null,null,null,null,null,null,0,0]
[null,null,null,null,null,null,null,null,null,null,null,0,0]
[null,null,null,null,null,null,null,null,null,null,null,0,0]
[null,null,null,null,null,null,null,null,null,null,null,0,0]
[null,null,null,null,null,null,null,null,null,null,null,0,0]
[null,null,null,null,null,null,null,null,null,null,null,0,0]
[null,null,null,null,null,null,null,null,null,null,null,0,0]
[null,null,null,null,null,null,null,null,null,null,null,0,0]
[null,null,null,null,null,null,null,null,null,null,null,0,0]
[null,null,null,null,null,null,null,null,null,null,null,0,0]
[null,null,null,null,null,null,null,null,null,null,null,0,0]
[null,null,null,null,null,null,null,null,null,null,null,0,0]
[null,null,null,null,null,null,null,null,null,null,null,0,0]
[null,null,null,null,null,null,null,null,null,null,null,0,0]
[null,null,null,null,null,null,null,null,null,null,null,0,0]
[null,null,null,null,null,null,null,null,null,null,null,0,0]
[null,null,null,null,null,null,null,null,null,null,null,0,0]
[null,null,null,null,null,null,null,null,null,null,null,0,0]
[null,null,null,null,null,null,null,null,null,null,null,0,0]
[null,null,null,null,null,null,null,null,null,null,null,0,0]
[null,null,null,null,null,null,null,null,null,null,null,0,0]
[null,null,null,null,null,null,null,null,null,null,null,0,0]
[null,null,null,null,null,null,null,null,null,null,null,0,0]
[null,null,null,null,null,null,null,null,null,null,null,0,0]
[null,null,null,null,null,null,null,null,null,null,null,0,0]
[null,null,null,null,null,null,null,null,null,null,null,0,0]
[null,null,null,null,null,null,null,null,null,null,null,0,0]
[null,null,null,null,null,null,null,null,null,null,null,0,0]
[null,null,null,null,null,null,null,null,null,null,null,0,0]
[null,null,null,null,null,null,null,null,null,null,null,{"$f":"K1390","v":0},0]
[null,null,null,null,null,null,null,null,null,null,null,0,0]
[null,null,null,null,null,null,null,null,null,null,null,0,0]
[null,null,null,null,null,null,null,null,null,null,null,0,0]
[null,null,null,null,null,null,null,null,null,null,null,0,0]
[null,null,null,null,null,null,null,null,null,null,null,0,0]
[null,null,null,null,null,null,null,null,null,null,null,0,0]
[null,null,null,null,null,null,null,null,null,null,null,0,0]
[null,null,null,null,null,null,null,null,null,null,null,0,0]
[null,null,null,null,null,null,null,null,null,null,null,0,0]
[null,null,null,null,null,null,null,null,null,null,null,0,0]
[null,null,null,null,null,null,null,null,null,null,null,0,0]
[null,null,null,null,null,null,null,null,null,null,null,0,0]
[null,null,null,null,null,null,null,null,null,null,null,0,0]
[null,null,null,null,null,null,null,null,null,null,null,0,0]
[null,null,null,null,null,null,null,null,null,null,null,0,0]
[null,null,null,null,null,null,null,null,null,null,null,0,0]
[null,null,null,null,null,null,null,null,null,null,null,0,0]
[null,null,null,null,null,null,null,null,null,null,null,0,0]
[null,null,null,null,null,null,null,null,null,null,null,0,0]
[null,null,null,null,null,null,null,null,null,null,null,0,0]
[null,null,null,null,null,null,null,null,null,null,null,0,{"$f":"D1411","v":0}]
[null,null,null,null,null,null,null,null,null,null,null,0,0]
[null,null,null,null,null,null,null,null,null,null,null,0,0]
[null,null,null,null,null,null,null,null,null,null,null,0,0]
[null,null,null,null,null,null,null,null,null,null,null,0,0]
[null,null,null,null,null,null,null,null,null,null,null,0,0]
[null,null,null,null,null,null,null,null,null,null,null,0,0]
[null,null,null,null,null,null,null,null,null,null,null,0,0]
[null,null,null,null,null,null,null,null,null,null,null,0,0]
[null,null,null,null,null,null,null,null,null,null,null,0,0]
[null,null,null,null,null,null,null,null,null,null,null,0,0]
[null,null,null,null,null,null,null,null,null,null,null,0,0]
[null,null,null,null,null,null,null,null,null,null,null,0,0]
[null,null,null,null,null,null,null,null,null,null,null,0,0]
[null,null,null,null,null,null,null,null,null,null,null,0,0]
[null,null,null,null,null,null,null,null,null,null,null,0,0]
[null,null,null,null,null,null,null,null,null,null,null,0,0]
[null,null,null,null,null,null,null,null,null,null,null,0,0]
[null,null,null,null,null,null,null,null,null,null,null,0,0]
[null,null,null,null,null,null,null,null,null,null,null,0,0]
[null,null,null,null,null,null,null,null,null,null,null,0,0]
[null,null,null,null,null,null,null,null,null,null,null,0,0]
[null,null,null,null,null,null,null,null,null,null,null,0,0]
[null,null,null,null,null,null,null,null,null,null,null,0,0]
[null,null,null,null,null,null,null,null,null,null,null,0,0]
[null,null,null,null,null,null,null,null,null,null,null,0,0]
[null,null,null,null,null,null,null,null,null,null,null,0,0]
[null,null,null,null,null,null,null,null,null,null,null,0,0]
[null,null,null,null,null,null,null,null,null,null,null,0,0]
[null,null,null,null,null,null,null,null,null,null,null,0,0]
[null,null,null,null,null,null,null,null,null,null,null,0,0]
[null,null,null,null,null,null,null,null,null,null,null,0,0]
[null,null,null,null,null,null,null,null,null,null,null,0,0]
[null,null,null,null,null,null,null,null,null,null,null,0,0]
[null,null,null,null,null,null,null,null,null,null,null,0,0]
[null,null,null,null,null,null,null,null,null,null,null,0,0]
[null,null,null,null,null,null,null,null,null,null,null,0,0]
[null,null,null,null,null,null,null,null,null,null,null,0,0]
[null,null,null,null,null,null,null,null,null,null,null,0,0]
[null,null,null,null,null,null,null,null,null,null,null,0,0]
[null,null,null,null,null,null,null,null,null,null,null,0,0]
[null,null,null,null,null,null,null,null,null,null,null,0,0]
[null,null,null,null,null,null,null,null,null,null,null,0,0]
[null,null,null,null,null,null,null,null,null,null,null,{"$f":"K1454","v":0},0]
[null,null,null,null,null,null,null,null,null,null,null,0,0]
[null,null,null,null,null,null,null,null,null,null,null,0,0]
[null,null,null,null,null,null,null,null,null,null,null,0,0]
[null,null,null,null,null,null,null,null,null,null,null,0,0]
[null,null,null,null,null,null,null,null,null,null,null,0,0]
[null,null,null,null,null,null,null,null,null,null,null,0,0]
[null,null,null,null,null,null,null,null,null,null,null,0,0]
[null,null,null,null,null,null,null,null,null,null,null,0,0]
[null,null,null,null,null,null,null,null,null,null,null,0,0]
[null,null,null,null,null,null,null,null,null,null,null,0,0]
[null,null,null,null,null,null,null,null,null,null,null,0,0]
[null,null,null,null,null,null,null,null,null,null,null,0,0]
[null,null,null,null,null,null,null,null,null,null,null,0,0]
[null,null,null,null,null,null,null,null,null,null,null,0,0]
[null,null,null,null,null,null,null,null,null,null,null,0,0]
[null,null,null,null,null,null,null,null,null,null,null,0,0]
[null,null,null,null,null,null,null,null,null,null,null,0,0]
[null,null,null,null,null,null,null,null,null,null,null,0,0]
[null,null,null,null,null,null,null,null,null,null,null,0,0]
[null,null,null,null,null,null,null,null,null,null,null,0,0]
[null,null,null,null,null,null,null,null,null,null,null,0,{"$f":"D1475","v":0}]
[null,null,null,null,null,null,null,null,null,null,null,0,0]
[null,null,null,null,null,null,null,null,null,null,null,0,0]
[null,null,null,null,null,null,null,null,null,null,null,0,0]
[null,null,null,null,null,null,null,null,null,null,null,0,0]
[null,null,null,null,null,null,null,null,null,null,null,0,0]
[null,null,null,null,null,null,null,null,null,null,null,0,0]
[null,null,null,null,null,null,null,null,null,null,null,0,0]
[null,null,null,null,null,null,null,null,null,null,null,0,0]
[null,null,null,null,null,null,null,null,null,null,null,0,0]
[null,null,null,null,null,null,null,null,null,null,null,0,0]
[null,null,null,null,null,null,null,null,null,null,null,0,0]
[null,null,null,null,null,null,null,null,null,null,null,0,0]
[null,null,null,null,null,null,null,null,null,null,null,0,0]
[null,null,null,null,null,null,null,null,null,null,null,0,0]
[null,null,null,null,null,null,null,null,null,null,null,0,0]
[null,null,null,null,null,null,null,null,null,null,null,0,0]
[null,null,null,null,null,null,null,null,null,null,null,0,0]
[null,null,null,null,null,null,null,null,null,null,null,0,0]
[null,null,null,null,null,null,null,null,null,null,null,0,0]
[null,null,null,null,null,null,null,null,null,null,null,0,0]
[null,null,null,null,null,null,null,null,null,null,null,0,0]
[null,null,null,null,null,null,null,null,null,null,null,0,0]
[null,null,null,null,null,null,null,null,null,null,null,0,0]
[null,null,null,null,null,null,null,null,null,null,null,0,0]
[null,null,null,null,null,null,null,null,null,null,null,0,0]
[null,null,null,null,null,null,null,null,null,null,null,0,0]
[null,null,null,null,null,null,null,null,null,null,null,0,0]
[null,null,null,null,null,null,null,null,null,null,null,0,0]
[null,null,null,null,null,null,null,null,null,null,null,0,0]
[null,null,null,null,null,null,null,null,null,null,null,0,0]
[null,null,null,null,null,null,null,null,null,null,null,0,0]
[null,null,null,null,null,null,null,null,null,null,null,0,0]
[null,null,null,null,null,null,null,null,null,null,null,0,0]
[null,null,null,null,null,null,null,null,null,null,null,0,0]
[null,null,null,null,null,null,null,null,null,null,null,0,0]
[null,null,null,null,null,null,null,null,null,null,null,0,0]
[null,null,null,null,null,null,null,null,null,null,null,0,0]
[null,null,null,null,null,null,null,null,null,null,null,0,0]
[null,null,null,null,null,null,null,null,null,null,null,0,0]
[null,null,null,null,null,null,null,null,null,null,null,0,0]
[null,null,null,null,null,null,null,null,null,null,null,0,0]
[null,null,null,null,null,null,null,null,null,null,null,0,0]
[null,null,null,null,null,null,null,null,null,null,null,{"$f":"K1518","v":0},0]
[null,null,null,null,null,null,null,null,null,null,null,0,0]
[null,null,null,null,null,null,null,null,null,null,null,0,0]
[null,null,null,null,null,null,null,null,null,null,null,0,0]
[null,null,null,null,null,null,null,null,null,null,null,0,0]
[null,null,null,null,null,null,null,null,null,null,null,0,0]
[null,null,null,null,null,null,null,null,null,null,null,0,0]
[null,null,null,null,null,null,null,null,null,null,null,0,0]
[null,null,null,null,null,null,null,null,null,null,null,0,0]
[null,null,null,null,null,null,null,null,null,null,null,0,0]
[null,null,null,null,null,null,null,null,null,null,null,0,0]
[null,null,null,null,null,null,null,null,null,null,null,0,0]
[null,null,null,null,null,null,null,null,null,null,null,0,0]
[null,null,null,null,null,null,null,null,null,null,null,0,0]
[null,null,null,null,null,null,null,null,null,null,null,0,0]
[null,null,null,null,null,null,null,null,null,null,null,0,0]
[null,null,null,null,null,null,null,null,null,null,null,0,0]
[null,null,null,null,null,null,null,null,null,null,null,0,0]
[null,null,null,null,null,null,null,null,null,null,null,0,0]
[null,null,null,null,null,null,null,null,null,null,null,0,0]
[null,null,null,null,null,null,null,null,null,null,null,0,0]
[null,null,null,null,null,null,null,null,null,null,null,0,{"$f":"D1539","v":0}]
[null,null,null,null,null,null,null,null,null,null,null,0,0]
[null,null,null,null,null,null,null,null,null,null,null,0,0]
[null,null,null,null,null,null,null,null,null,null,null,0,0]
[null,null,null,null,null,null,null,null,null,null,null,0,0]
[null,null,null,null,null,null,null,null,null,null,null,0,0]
[null,null,null,null,null,null,null,null,null,null,null,0,0]
[null,null,null,null,null,null,null,null,null,null,null,0,0]
[null,null,null,null,null,null,null,null,null,null,null,0,0]
[null,null,null,null,null,null,null,null,null,null,null,0,0]
[null,null,null,null,null,null,null,null,null,null,null,0,0]
[null,null,null,null,null,null,null,null,null,null,null,0,0]
[null,null,null,null,null,null,null,null,null,null,null,0,0]
[null,null,null,null,null,null,null,null,null,null,null,0,0]
[null,null,null,null,null,null,null,null,null,null,null,0,0]
[null,null,null,null,null,null,null,null,null,null,null,0,0]
[null,null,null,null,null,null,null,null,null,null,null,0,0]
[null,null,null,null,null,null,null,null,null,null,null,0,0]
[null,null,null,null,null,null,null,null,null,null,null,0,0]
[null,null,null,null,null,null,null,null,null,null,null,0,0]
[null,null,null,null,null,null,null,null,null,null,null,0,0]
[null,null,null,null,null,null,null,null,null,null,null,0,0]
[null,null,null,null,null,null,null,null,null,null,null,0,0]
[null,null,null,null,null,null,null,null,null,null,null,0,0]
[null,null,null,null,null,null,null,null,null,null,null,0,0]
[null,null,null,null,null,null,null,null,null,null,null,0,0]
[null,null,null,null,null,null,null,null,null,null,null,0,0]
[null,null,null,null,null,null,null,null,null,null,null,0,0]
[null,null,null,null,null,null,null,null,null,null,null,0,0]
[null,null,null,null,null,null,null,null,null,null,null,0,0]
[null,null,null,null,null,null,null,null,null,null,null,0,0]
[null,null,null,null,null,null,null,null,null,null,null,0,0]
[null,null,null,null,null,null,null,null,null,null,null,0,0]
[null,null,null,null,null,null,null,null,null,null,null,0,0]
[null,null,null,null,null,null,null,null,null,null,null,0,0]
[null,null,null,null,null,null,null,null,null,null,null,0,0]
[null,null,null,null,null,null,null,null,null,null,null,0,0]
[null,null,null,null,null,null,null,null,null,null,null,0,0]
[null,null,null,null,null,null,null,null,null,null,null,0,0]
[null,null,null,null,null,null,null,null,null,null,null,0,0]
[null,null,null,null,null,null,null,null,null,null,null,0,0]
[null,null,null,null,null,null,null,null,null,null,null,0,0]
[null,null,null,null,null,null,null,null,null,null,null,0,0]
[null,null,null,null,null,null,null,null,null,null,null,{"$f":"K1582","v":0},0]
[null,null,null,null,null,null,null,null,null,null,null,0,0]
[null,null,null,null,null,null,null,null,null,null,null,0,0]
[null,null,null,null,null,null,null,null,null,null,null,0,0]
[null,null,null,null,null,null,null,null,null,null,null,0,0]
[null,null,null,null,null,null,null,null,null,null,null,0,0]
[null,null,null,null,null,null,null,null,null,null,null,0,0]
[null,null,null,null,null,null,null,null,null,null,null,0,0]
[null,null,null,null,null,null,null,null,null,null,null,0,0]
[null,null,null,null,null,null,null,null,null,null,null,0,0]
[null,null,null,null,null,null,null,null,null,null,null,0,0]
[null,null,null,null,null,null,null,null,null,null,null,0,0]
[null,null,null,null,null,null,null,null,null,null,null,0,0]
[null,null,null,null,null,null,null,null,null,null,null,0,0]
[null,null,null,null,null,null,null,null,null,null,null,0,0]
[null,null,null,null,null,null,null,null,null,null,null,0,0]
[null,null,null,null,null,null,null,null,null,null,null,0,0]
[null,null,null,null,null,null,null,null,null,null,null,0,0]
[null,null,null,null,null,null,null,null,null,null,null,0,0]
[null,null,null,null,null,null,null,null,null,null,null,0,0]
[null,null,null,null,null,null,null,null,null,null,null,0,0]
[null,null,null,null,null,null,null,null,null,null,null,0,{"$f":"D1603","v":0}]
[null,null,null,null,null,null,null,null,null,null,null,0,0]
[null,null,null,null,null,null,null,null,null,null,null,0,0]
[null,null,null,null,null,null,null,null,null,null,null,0,0]
[null,null,null,null,null,null,null,null,null,null,null,0,0]
[null,null,null,null,null,null,null,null,null,null,null,0,0]
[null,null,null,null,null,null,null,null,null,null,null,0,0]
[null,null,null,null,null,null,null,null,null,null,null,0,0]

{"sheet":"report","index":1,"n_rows":0,"n_cols":0,"rows_kept":0,"cut":false,"hidden":false,"merged":[[109,4,109,5],[114,4,114,5],[390,1,390,2],[390,4,390,7],[390,8,390,9],[110,1,110,2],[110,4,110,7],[110,8,110,9],[113,4,113,5],[306,1,306,2],[306,4,306,7],[306,8,306,9],[138,1,138,2],[138,4,138,7],[138,8,138,9],[166,1,166,2],[418,1,418,2],[418,4,418,7],[418,8,418,9],[334,1,334,2],[334,4,334,7],[334,8,334,9],[362,1,362,2],[362,4,362,7],[362,8,362,9],[92,4,92,8],[69,4,69,8],[112,4,112,5],[96,4,96,8],[97,4,97,5],[98,4,98,5],[99,4,99,5],[100,4,100,5],[101,4,101,5],[102,4,102,5],[103,4,103,5],[104,4,104,5],[105,4,105,5],[106,4,106,5],[107,4,107,5],[108,4,108,5],[5,4,5,8],[18,4,18,8],[57,4,57,8],[41,4,41,8],[44,4,44,8],[32,4,32,8],[26,1,26,2],[26,4,26,7],[26,8,26,9],[54,1,54,2],[54,4,54,7],[54,8,54,9],[59,4,59,8],[82,1,82,2],[82,4,82,7],[82,8,82,9],[88,4,88,8],[79,4,79,8],[166,4,166,7],[166,8,166,9],[194,1,194,2],[194,4,194,7],[194,8,194,9],[222,1,222,2],[222,4,222,7],[222,8,222,9],[250,1,250,2],[250,4,250,7],[250,8,250,9],[278,1,278,2],[278,4,278,7],[278,8,278,9],[614,1,614,2],[614,4,614,7],[614,8,614,9],[446,4,446,7],[446,8,446,9],[474,1,474,2],[474,4,474,7],[474,8,474,9],[502,1,502,2],[502,4,502,7],[502,8,502,9],[530,1,530,2],[530,4,530,7],[586,1,586,2],[586,4,586,7],[586,8,586,9],[530,8,530,9],[446,1,446,2],[558,1,558,2],[558,4,558,7],[558,8,558,9]]}